Body,Body Name,Date,Transaction Number,Invoice Number,Amount,Supplier Name,Supplier ID ,VAT Registration Number ,Expense Area,Expense Type,Expense Code,Purchase Order
http://statistics.data.gov.uk/id/local-authority/29UP,Tonbridge & Malling Borough Council,9/2/2022,0041034668/1,41034668, 52.77,National Westminster Bank Plc,00894500,,Purchases,Tonbridge Castle Gatehouse,B40TG000040101,
http://statistics.data.gov.uk/id/local-authority/29UP,Tonbridge & Malling Borough Council,9/2/2022,0041034668/10,41034668, 89.26,National Westminster Bank Plc,00894500,,Subscriptions,Information Technology,D27KD000047002,
http://statistics.data.gov.uk/id/local-authority/29UP,Tonbridge & Malling Borough Council,9/2/2022,0041034668/11,41034668, 54.89,National Westminster Bank Plc,00894500,,Information & Publicity,Information & Publicity,D32MJ000044076,
http://statistics.data.gov.uk/id/local-authority/29UP,Tonbridge & Malling Borough Council,9/2/2022,0041034668/12,41034668, 8.75,National Westminster Bank Plc,00894500,,Bank Charges,Banking Arrangements,D43QK000044222,
http://statistics.data.gov.uk/id/local-authority/29UP,Tonbridge & Malling Borough Council,9/2/2022,0041034668/13,41034668, 67.00,National Westminster Bank Plc,00894500,,Other Expenses,Food & Safety - Food Safety,H35SX000048010,
http://statistics.data.gov.uk/id/local-authority/29UP,Tonbridge & Malling Borough Council,9/2/2022,0041034668/14,41034668, 104.90,National Westminster Bank Plc,00894500,,Sales,TIC Stock Account,K18AX000002002,
http://statistics.data.gov.uk/id/local-authority/29UP,Tonbridge & Malling Borough Council,9/2/2022,0041034668/15,41034668, 49.53,National Westminster Bank Plc,00894500,,Sales,TIC Stock Account,K18AX000002002,
http://statistics.data.gov.uk/id/local-authority/29UP,Tonbridge & Malling Borough Council,9/2/2022,0041034668/16,41034668, 43.46,National Westminster Bank Plc,00894500,,Sales,TIC Stock Account,K18AX000002002,
http://statistics.data.gov.uk/id/local-authority/29UP,Tonbridge & Malling Borough Council,9/2/2022,0041034668/2,41034668, 285.00,National Westminster Bank Plc,00894500,,Purchases - Exhibits,Tonbridge Castle Gatehouse,B40TG000040106,
http://statistics.data.gov.uk/id/local-authority/29UP,Tonbridge & Malling Borough Council,9/2/2022,0041034668/3,41034668, 395.78,National Westminster Bank Plc,00894500,,Temporary Accommodation,Homelessness,C01AA000044051,
http://statistics.data.gov.uk/id/local-authority/29UP,Tonbridge & Malling Borough Council,9/2/2022,0041034668/4,41034668, 124.99,National Westminster Bank Plc,00894500,,Temporary Accommodation,Homelessness,C01AA000044051,
http://statistics.data.gov.uk/id/local-authority/29UP,Tonbridge & Malling Borough Council,9/2/2022,0041034668/8,41034668, 14.53,National Westminster Bank Plc,00894500,,Software Hire & Support,Information Technology,D27KD000044059,
http://statistics.data.gov.uk/id/local-authority/29UP,Tonbridge & Malling Borough Council,9/2/2022,0041034668/9,41034668, 14.45,National Westminster Bank Plc,00894500,,Delivery Expenses,Information Technology,D27KD000044069,
http://statistics.data.gov.uk/id/local-authority/29UP,Tonbridge & Malling Borough Council,9/7/2022,0011044750/1,11044750, 9271.90,Ash Special Works Ltd,01858100,,BRREP Resp - Vandal / Break-In,PC - General,M15JAP50001998,110069674
http://statistics.data.gov.uk/id/local-authority/29UP,Tonbridge & Malling Borough Council,9/7/2022,0011044803/1,11044803, 381.23,KCS,00054200,,Electricity,Buildings,D21FE000021002,
http://statistics.data.gov.uk/id/local-authority/29UP,Tonbridge & Malling Borough Council,9/7/2022,0011044804/1,11044804, 553.57,KH Recruitment Ltd,01738900,,Temporary Staff,Personnel Sals&Overheads,D01ABDB0311300,
http://statistics.data.gov.uk/id/local-authority/29UP,Tonbridge & Malling Borough Council,9/7/2022,0011044805/1,11044805, 1500.00,Cornerstones Barristers,01359100,,Development of Local Plan,Development of Local Plan,A01AE000044023,
http://statistics.data.gov.uk/id/local-authority/29UP,Tonbridge & Malling Borough Council,9/7/2022,0011044806/1,11044806, 1217.80,Sellick Partnership Group Limited,01336800,,Temporary Staff,Legal Sals&Overheads,D01ARDR0011300,
http://statistics.data.gov.uk/id/local-authority/29UP,Tonbridge & Malling Borough Council,9/7/2022,0011044807/1,11044807, 63.60,Kent Crisps Ltd,01806500,,Purchases,TIC Stock Account,K18AX000001002,
http://statistics.data.gov.uk/id/local-authority/29UP,Tonbridge & Malling Borough Council,9/7/2022,0011044808/1,11044808, 76.00,Borough Green Parish Council,00011000,,Re-opening High Streets,Eco Dev & Reg Gen Bus Support,D52TDCV1948076,
http://statistics.data.gov.uk/id/local-authority/29UP,Tonbridge & Malling Borough Council,9/7/2022,0011044809/1,11044809, 256.00,Thomson Snell & Passmore,00101700,,Legal Fees,Legal Sals&Overheads,D01ARDR0044002,
http://statistics.data.gov.uk/id/local-authority/29UP,Tonbridge & Malling Borough Council,9/7/2022,0011044810/1,11044810, 145.00,Absolute Creative Print,01801100,,Economic Development & Regen,Eco Dev & Reg Gen Bus Support,D52TD000047027,110069677
http://statistics.data.gov.uk/id/local-authority/29UP,Tonbridge & Malling Borough Council,9/7/2022,0011044811/1,11044811, 460.00,SJC Door Security Installations,01278600,,BRREP Servicing - access syst,Gibson Building East,M15KGP20001940,110069722
http://statistics.data.gov.uk/id/local-authority/29UP,Tonbridge & Malling Borough Council,9/7/2022,0011044812/1,11044812, 8259.72,DORMA UK Ltd,00413500,549361128,BRREP Servicing-entrance doors,Angel Centre,M15HAP20001927,110069592
http://statistics.data.gov.uk/id/local-authority/29UP,Tonbridge & Malling Borough Council,9/7/2022,0011044813/1,11044813, 520.00,G C Industrial Heating Services,00578100,,BRREP Response - General,Gibson Building West,M15KBP50001997,110069685
http://statistics.data.gov.uk/id/local-authority/29UP,Tonbridge & Malling Borough Council,9/7/2022,0011044814/1,11044814, 590.00,K T Fire Protection Ltd,00057000,,BRREP Emergency light discharg,Angel Centre,M15HAP30001980,110069487
http://statistics.data.gov.uk/id/local-authority/29UP,Tonbridge & Malling Borough Council,9/7/2022,0011044814/10,11044814, 295.00,K T Fire Protection Ltd,00057000,,BRREP Emergency light discharg,Gibson Building East,M15KGP30001980,110069487
http://statistics.data.gov.uk/id/local-authority/29UP,Tonbridge & Malling Borough Council,9/7/2022,0011044814/2,11044814, 590.00,K T Fire Protection Ltd,00057000,,BRREP Emergency light discharg,Tonbridge Swimming Pool,M15HBP30001980,110069487
http://statistics.data.gov.uk/id/local-authority/29UP,Tonbridge & Malling Borough Council,9/7/2022,0011044814/3,11044814, 690.00,K T Fire Protection Ltd,00057000,,BRREP Emergency light discharg,Larkfield Leisure Centre,M15HDP30001980,110069487
http://statistics.data.gov.uk/id/local-authority/29UP,Tonbridge & Malling Borough Council,9/7/2022,0011044814/4,11044814, 160.00,K T Fire Protection Ltd,00057000,,BRREP Emergency light discharg,Leis Man Poult Wood Golf Centr,M15HEP30001980,110069487
http://statistics.data.gov.uk/id/local-authority/29UP,Tonbridge & Malling Borough Council,9/7/2022,0011044814/5,11044814, 40.00,K T Fire Protection Ltd,00057000,,BRREP Emergency light discharg,Leis Man Poult Wood Golf Centr,M15HEP30001980,110069487
http://statistics.data.gov.uk/id/local-authority/29UP,Tonbridge & Malling Borough Council,9/7/2022,0011044814/6,11044814, 120.00,K T Fire Protection Ltd,00057000,,BRREP Emergency light discharg,Tonbridge Farm Pavillion,M15HGP30001980,110069487
http://statistics.data.gov.uk/id/local-authority/29UP,Tonbridge & Malling Borough Council,9/7/2022,0011044814/7,11044814, 100.00,K T Fire Protection Ltd,00057000,,BRREP Emergency light discharg,Tonbridge Castle Gatehouse,M15HKP30001980,110069487
http://statistics.data.gov.uk/id/local-authority/29UP,Tonbridge & Malling Borough Council,9/7/2022,0011044814/8,11044814, 295.00,K T Fire Protection Ltd,00057000,,BRREP Emergency light discharg,Gibson Building West,M15KBP30001980,110069487
http://statistics.data.gov.uk/id/local-authority/29UP,Tonbridge & Malling Borough Council,9/7/2022,0011044814/9,11044814, 100.00,K T Fire Protection Ltd,00057000,,BRREP Emergency light discharg,Tonbridge Castle / CAB,M15KFP30001980,110069487
http://statistics.data.gov.uk/id/local-authority/29UP,Tonbridge & Malling Borough Council,9/7/2022,0011044815/1,11044815, 385.00,BML Building Services Ltd,01505000,,BRREP Response - General,Tonbridge Castle / CAB,M15KFP50001997,110069710
http://statistics.data.gov.uk/id/local-authority/29UP,Tonbridge & Malling Borough Council,9/7/2022,0011044816/1,11044816, 337.00,BML Building Services Ltd,01505000,,BRREP Response - General,Tonbridge Castle Gatehouse,M15HKP50001997,110069709
http://statistics.data.gov.uk/id/local-authority/29UP,Tonbridge & Malling Borough Council,9/7/2022,0011044817/1,11044817, 580.00,G C Industrial Heating Services,00578100,,BRREP Plant renewals,Larkfield Leisure Centre,M15HDP20001909,110069732
http://statistics.data.gov.uk/id/local-authority/29UP,Tonbridge & Malling Borough Council,9/7/2022,0011044818/1,11044818, 270.00,G C Industrial Heating Services,00578100,,BRREP Response - General,Ton Sportsgrnd Bldgs / Toilets,M15HCP50001997,110069731
http://statistics.data.gov.uk/id/local-authority/29UP,Tonbridge & Malling Borough Council,9/7/2022,0011044819/1,11044819, 4248.00,BML Building Services Ltd,01505000,,BRREP Response - General,Larkfield Leisure Centre,M15HDP50001997,110069644
http://statistics.data.gov.uk/id/local-authority/29UP,Tonbridge & Malling Borough Council,9/7/2022,0011044821/1,11044821, 1360.00,G C Industrial Heating Services,00578100,,BRREP Response - General,Larkfield Leisure Centre,M15HDP50001997,110069765
http://statistics.data.gov.uk/id/local-authority/29UP,Tonbridge & Malling Borough Council,9/7/2022,0011044822/1,11044822, 78.50,Triple S Lift Services,01344900,,BRREP Servicing - lifts,Gibson Building East,M15KGP20001930,110069752
http://statistics.data.gov.uk/id/local-authority/29UP,Tonbridge & Malling Borough Council,9/7/2022,0011044823/1,11044823, 589.41,KH Recruitment Ltd,01738900,,Temporary Staff,Personnel Sals&Overheads,D01ABDB0311300,
http://statistics.data.gov.uk/id/local-authority/29UP,Tonbridge & Malling Borough Council,9/7/2022,0011044824/1,11044824, 158.33,Scottish Water Business Stream Ltd,01641100,,Estate Management Charge,Land Review,D40PS000020400,
http://statistics.data.gov.uk/id/local-authority/29UP,Tonbridge & Malling Borough Council,9/7/2022,0011044825/1,11044825, 184.00,BML Building Services Ltd,01505000,,BRREP Response - General,Shops & Maisonettes,M15NAP50001997,
http://statistics.data.gov.uk/id/local-authority/29UP,Tonbridge & Malling Borough Council,9/7/2022,0011044826/1,11044826, 358.00,BML Building Services Ltd,01505000,,BRREP Response - General,PC - General,M15JAP50001997,
http://statistics.data.gov.uk/id/local-authority/29UP,Tonbridge & Malling Borough Council,9/7/2022,0011044827/1,11044827, 109.00,BML Building Services Ltd,01505000,,BRREP Response - General,Tonbridge Castle / CAB,M15KFP50001997,
http://statistics.data.gov.uk/id/local-authority/29UP,Tonbridge & Malling Borough Council,9/7/2022,0011044828/3,11044828, 6.96,REDACTED PERSONAL DATA,00012900,,Hospitality,Mayoral & Other Member Support,D29LX000048003,
http://statistics.data.gov.uk/id/local-authority/29UP,Tonbridge & Malling Borough Council,9/7/2022,0011044828/4,11044828, 27.80,REDACTED PERSONAL DATA,00012900,,Hospitality,Mayoral & Other Member Support,D29LX000048003,
http://statistics.data.gov.uk/id/local-authority/29UP,Tonbridge & Malling Borough Council,9/7/2022,0011044829/1,11044829, 1470.15,Royal Mail,00086200,,Postages - Business Reply,Electoral Registration,D31MF000045003,
http://statistics.data.gov.uk/id/local-authority/29UP,Tonbridge & Malling Borough Council,9/7/2022,0011044830/1,11044830, 4748.24,KCS,00054200,,Electricity,Buildings,D21FEDD1021002,
http://statistics.data.gov.uk/id/local-authority/29UP,Tonbridge & Malling Borough Council,9/7/2022,0011044831/1,11044831, 2920.44,KCS,00054200,,Electricity,Buildings,D21FEDD6021002,
http://statistics.data.gov.uk/id/local-authority/29UP,Tonbridge & Malling Borough Council,9/7/2022,0011044832/1,11044832, 4217.40,KCS,00054200,,Electricity,Buildings,D21FEDD5021002,
http://statistics.data.gov.uk/id/local-authority/29UP,Tonbridge & Malling Borough Council,9/7/2022,0011044833/3,11044833, 1903.46,KCS,00054200,,Electricity,Buildings,D21FEDD5021002,
http://statistics.data.gov.uk/id/local-authority/29UP,Tonbridge & Malling Borough Council,9/7/2022,0011044834/1,11044834, 329.00,BML Building Services Ltd,01505000,,BRREP Response - General,Pleasure Grounds & Open Spaces,M15HHP50001997,
http://statistics.data.gov.uk/id/local-authority/29UP,Tonbridge & Malling Borough Council,9/7/2022,0011044835/1,11044835, 1237.67,Royal Mail,00086200,,Purchases,Mailsort Stock Account,K37BR000001002,
http://statistics.data.gov.uk/id/local-authority/29UP,Tonbridge & Malling Borough Council,9/7/2022,0011044835/2,11044835, 26.88,Royal Mail,00086200,,Purchases,Mailsort Stock Account,K37BR000001002,
http://statistics.data.gov.uk/id/local-authority/29UP,Tonbridge & Malling Borough Council,9/7/2022,0011044835/3,11044835, 7.00,Royal Mail,00086200,,Purchases,Mailsort Stock Account,K37BR000001002,
http://statistics.data.gov.uk/id/local-authority/29UP,Tonbridge & Malling Borough Council,9/7/2022,0011044836/1,11044836, 422.23,Castle Water,01696500,,Water Charges (Metered),Buildings,D21FEDD6024001,
http://statistics.data.gov.uk/id/local-authority/29UP,Tonbridge & Malling Borough Council,9/7/2022,0011044837/1,11044837, 573.56,Castle Water,01696500,,Water Charges (Metered),Buildings,D21FEDD1024001,
http://statistics.data.gov.uk/id/local-authority/29UP,Tonbridge & Malling Borough Council,9/7/2022,0011044838/1,11044838, 1290.45,Royal Mail,00086200,,Purchases,Mailsort Stock Account,K37BR000001002,
http://statistics.data.gov.uk/id/local-authority/29UP,Tonbridge & Malling Borough Council,9/7/2022,0011044838/2,11044838, 10.43,Royal Mail,00086200,,Purchases,Mailsort Stock Account,K37BR000001002,
http://statistics.data.gov.uk/id/local-authority/29UP,Tonbridge & Malling Borough Council,9/7/2022,0011044840/1,11044840, 195.00,NLC Nova Lift Company Ltd,01735600,,BRREP Servicing - lifts,Leis Man Poult Wood Golf Centr,M15HEP20001930,
http://statistics.data.gov.uk/id/local-authority/29UP,Tonbridge & Malling Borough Council,9/7/2022,0011044841/1,11044841, 195.00,NLC Nova Lift Company Ltd,01735600,,BRREP Servicing - lifts,Leis Man Poult Wood Golf Centr,M15HEP20001930,
http://statistics.data.gov.uk/id/local-authority/29UP,Tonbridge & Malling Borough Council,9/7/2022,0011044842/3,11044842, 634.00,Hadene Engineering Ltd,00041900,,BRREP Servicing - boilers,Larkfield Leisure Centre,M15HDP20001929,
http://statistics.data.gov.uk/id/local-authority/29UP,Tonbridge & Malling Borough Council,9/7/2022,0011044844/1,11044844, 108.06,Castle Water,01696500,,Water Charges (Metered),Buildings,D21FEDD5024001,
http://statistics.data.gov.uk/id/local-authority/29UP,Tonbridge & Malling Borough Council,9/7/2022,0011044845/1,11044845, 540.00,G C Industrial Heating Services,00578100,,BRREP Plant renewals,Larkfield Leisure Centre,M15HDP20001909,
http://statistics.data.gov.uk/id/local-authority/29UP,Tonbridge & Malling Borough Council,9/7/2022,0011044846/1,11044846, 750.00,Cornerstones Barristers,01359100,,Legal Fees,Legal Sals&Overheads,D01ARDR0044002,
http://statistics.data.gov.uk/id/local-authority/29UP,Tonbridge & Malling Borough Council,9/7/2022,0011044847/1,11044847, 3000.00,Cornerstones Barristers,01359100,,Other Planning Enq - Legal Cos,Legal Sals&Overheads,D01ARDR0044146,
http://statistics.data.gov.uk/id/local-authority/29UP,Tonbridge & Malling Borough Council,9/7/2022,0011044848/3,11044848, 2957.08,Castle Water,01696500,,Estate Management Charge,Land Review,D40PS000020400,
http://statistics.data.gov.uk/id/local-authority/29UP,Tonbridge & Malling Borough Council,9/7/2022,0011044849/1,11044849, 494.00,Disclosure & Barring Service,00865900,,Professional Fees,Licences - Fee Paying,H27SH000044001,
http://statistics.data.gov.uk/id/local-authority/29UP,Tonbridge & Malling Borough Council,9/7/2022,0011044850/3,11044850, 91.50,R C Brady (UK) Ltd,00131500,,Purchases,TIC Stock Account,K18AX000001002,
http://statistics.data.gov.uk/id/local-authority/29UP,Tonbridge & Malling Borough Council,9/7/2022,0011044853/1,11044853, 220.00,Coolburn Air Conditioning Ltd,01137900,,BRREP Servicing - air handling,Larkfield Leisure Centre,M15HDP20001936,110069373
http://statistics.data.gov.uk/id/local-authority/29UP,Tonbridge & Malling Borough Council,9/7/2022,0011044854/1,11044854, 640.47,Coolburn Air Conditioning Ltd,01137900,,BRREP Servicing - air handling,Tonbridge Swimming Pool,M15HBP20001936,110069124
http://statistics.data.gov.uk/id/local-authority/29UP,Tonbridge & Malling Borough Council,9/7/2022,0011044855/1,11044855, 1718.39,Coolburn Air Conditioning Ltd,01137900,,BRREP Servicing - air handling,Angel Centre,M15HAP20001936,110069028
http://statistics.data.gov.uk/id/local-authority/29UP,Tonbridge & Malling Borough Council,9/7/2022,0011044856/1,11044856, 670.00,Coolburn Air Conditioning Ltd,01137900,,BRREP Servicing - air handling,Angel Centre,M15HAP20001936,110069170
http://statistics.data.gov.uk/id/local-authority/29UP,Tonbridge & Malling Borough Council,9/7/2022,0011044856/2,11044856, 500.00,Coolburn Air Conditioning Ltd,01137900,,BRREP Servicing - air handling,Tonbridge Swimming Pool,M15HBP20001936,110069170
http://statistics.data.gov.uk/id/local-authority/29UP,Tonbridge & Malling Borough Council,9/7/2022,0011044857/1,11044857, 277.00,BML Building Services Ltd,01505000,,BRREP Response - General,Tonbridge Castle / CAB,M15KFP50001997,110069637
http://statistics.data.gov.uk/id/local-authority/29UP,Tonbridge & Malling Borough Council,9/7/2022,0011044858/1,11044858, 346.00,BML Building Services Ltd,01505000,,BRREP Response - General,Tonbridge Castle / CAB,M15KFP50001997,110069718
http://statistics.data.gov.uk/id/local-authority/29UP,Tonbridge & Malling Borough Council,9/7/2022,0011044859/1,11044859, 163.00,BML Building Services Ltd,01505000,,BRREP Hard paving surface rep,Larkfield Leisure Centre,M15HDP20001946,110069739
http://statistics.data.gov.uk/id/local-authority/29UP,Tonbridge & Malling Borough Council,9/7/2022,0012008469/1,12008469, 10000.00,Agile Applications Ltd,01850800,,Consultancy Fees,Information Technology,D27KD000044011,410032202
http://statistics.data.gov.uk/id/local-authority/29UP,Tonbridge & Malling Borough Council,9/7/2022,0012008470/1,12008470, 29.99,CCS Media Ltd,00018000,,Toner Cartridges,Information Technology,D27KD000043018,410032248
http://statistics.data.gov.uk/id/local-authority/29UP,Tonbridge & Malling Borough Council,9/7/2022,0012008470/2,12008470, 4.95,CCS Media Ltd,00018000,,Delivery Expenses,Information Technology,D27KD000044069,410032248
http://statistics.data.gov.uk/id/local-authority/29UP,Tonbridge & Malling Borough Council,9/7/2022,0012008471/1,12008471, 15.44,Esendex Limited,01008900,,Leased Lines & Modems,Information Technology,D27KD000045011,
http://statistics.data.gov.uk/id/local-authority/29UP,Tonbridge & Malling Borough Council,9/7/2022,0012008472/1,12008472, 57.03,Phoenix Software Ltd,00077400,755349015,Software Hire & Support,Information Technology,D27KD000044059,410032247
http://statistics.data.gov.uk/id/local-authority/29UP,Tonbridge & Malling Borough Council,9/7/2022,0012008473/1,12008473, 10.00,Vanquish Tech,01798700,124406447,Delivery Expenses,Information Technology,D27KD000044069,410032249
http://statistics.data.gov.uk/id/local-authority/29UP,Tonbridge & Malling Borough Council,9/7/2022,0012008473/2,12008473, 757.90,Vanquish Tech,01798700,124406447,Initial Furniture & Equipment,Capital Renewals IT,P06FBFB1009906,410032249
http://statistics.data.gov.uk/id/local-authority/29UP,Tonbridge & Malling Borough Council,9/7/2022,0012008474/1,12008474, 1842.35,NTT Cloud Communications UK Ltd,01794600,,Software Hire & Support,Information Technology,D27KD000044059,
http://statistics.data.gov.uk/id/local-authority/29UP,Tonbridge & Malling Borough Council,9/7/2022,0012008475/1,12008475, 111.00,Sumillion Ltd,01726600,,Purchases,Information Technology,D27KD000040101,410032250
http://statistics.data.gov.uk/id/local-authority/29UP,Tonbridge & Malling Borough Council,9/7/2022,0021038135/3,21038135, 1532.25,Prosec General Security Ltd,00810600,,Events Support,Events Development,B41TJ000044041,
http://statistics.data.gov.uk/id/local-authority/29UP,Tonbridge & Malling Borough Council,9/7/2022,0021038136/1,21038136, 40.85,Castle Water,01696500,,Water Charges (Metered),Cemetery,B26MP000024001,
http://statistics.data.gov.uk/id/local-authority/29UP,Tonbridge & Malling Borough Council,9/7/2022,0021038137/1,21038137, 544.98,G.L. & R.G. Bourne,00737500,,Gates / Security,Haysden Country Park,B22LC000044017,210056722
http://statistics.data.gov.uk/id/local-authority/29UP,Tonbridge & Malling Borough Council,9/7/2022,0021038138/1,21038138, 40.00,G.L. & R.G. Bourne,00737500,,Maintenance of Grounds,Haysden Country Park,B22LC000020402,210056723
http://statistics.data.gov.uk/id/local-authority/29UP,Tonbridge & Malling Borough Council,9/7/2022,0021038139/1,21038139, 74.71,G.L. & R.G. Bourne,00737500,,Gates / Security,Haysden Country Park,B22LC000044017,210056722
http://statistics.data.gov.uk/id/local-authority/29UP,Tonbridge & Malling Borough Council,9/7/2022,0022027002/1,22027002, 245.19,Scottish Water Business Stream Ltd,01641100,,Sewerage Charges,Public Conveniences,H22SCH00424003,
http://statistics.data.gov.uk/id/local-authority/29UP,Tonbridge & Malling Borough Council,9/7/2022,0022027003/1,22027003, 16302.00,Craemer UK LTD,01616400,,Initial Furniture & Equipment,Refuse Bins Growth/Replacement,P02DA000009906,220003266
http://statistics.data.gov.uk/id/local-authority/29UP,Tonbridge & Malling Borough Council,9/7/2022,0022027004/1,22027004, 1120.00,Clarkes Funeral Service,00021200,,Funeral Expenses,Public Health Act 1984,H26SG000054002,220003263
http://statistics.data.gov.uk/id/local-authority/29UP,Tonbridge & Malling Borough Council,9/7/2022,0022027005/1,22027005, 4866.00,Premiere Projects,00201200,,Other Expenses,Disabled Facilities Grant Mand,P03AC000009908,
http://statistics.data.gov.uk/id/local-authority/29UP,Tonbridge & Malling Borough Council,9/7/2022,0022027006/3,22027006, 37.00,Biffa Waste Services Ltd,01284500,,Trade Refuse Charges,Cleaning & Security,D21FD000044008,
http://statistics.data.gov.uk/id/local-authority/29UP,Tonbridge & Malling Borough Council,9/7/2022,0022027007/3,22027007, 2260.34,Castle Water,01696500,,Water Charges (Metered),Public Conveniences,H22SCH01224001,
http://statistics.data.gov.uk/id/local-authority/29UP,Tonbridge & Malling Borough Council,9/7/2022,0022027008/1,22027008, 2077.00,1st  Steps Housing Kent,01716100,,Temporary Accommodation,Homelessness,C01AA000044051,
http://statistics.data.gov.uk/id/local-authority/29UP,Tonbridge & Malling Borough Council,9/7/2022,0022027010/1,22027010, 4.40,REDACTED PERSONAL DATA,01175600,,Food Sampling,Food & Safety - Food Safety,H35SX000054011,
http://statistics.data.gov.uk/id/local-authority/29UP,Tonbridge & Malling Borough Council,9/7/2022,0022027011/3,22027011, 800.00,Green Recycling LTD,01563000,,Paper Recycling,Dry Recycling,H34SR000054024,
http://statistics.data.gov.uk/id/local-authority/29UP,Tonbridge & Malling Borough Council,9/7/2022,0022027012/1,22027012, 780.00,Green Recycling LTD,01563000,,General Maintenance,Dry Recycling,H34SR000020301,210056898
http://statistics.data.gov.uk/id/local-authority/29UP,Tonbridge & Malling Borough Council,9/7/2022,0022027013/1,22027013, 3359.00,House to Home Lettings Ltd ,01647600,,Temporary Accommodation,Homelessness,C01AA000044051,
http://statistics.data.gov.uk/id/local-authority/29UP,Tonbridge & Malling Borough Council,9/7/2022,0022027014/3,22027014, 1594.00,Specialist Hygiene Services,01466100,,Cleaning & Domestic Supplies,Haysden Country Park,B22LC000026001,
http://statistics.data.gov.uk/id/local-authority/29UP,Tonbridge & Malling Borough Council,9/7/2022,0022027014/4,22027014, 5823.00,Specialist Hygiene Services,01466100,,Contract Payments,Public Conveniences,H22SC000054001,
http://statistics.data.gov.uk/id/local-authority/29UP,Tonbridge & Malling Borough Council,9/7/2022,0022027015/3,22027015, 10950.00,SPA CAFFE LIMITED,00127100,,Temporary Accommodation,Homelessness,C01AA000044051,
http://statistics.data.gov.uk/id/local-authority/29UP,Tonbridge & Malling Borough Council,9/7/2022,0022027016/1,22027016, 1550.00,Kent Housing,01503200,,Temporary Accommodation,Homelessness,C01AA000044051,
http://statistics.data.gov.uk/id/local-authority/29UP,Tonbridge & Malling Borough Council,9/7/2022,0022027017/3,22027017, 1295.44,Premier Inn,01217400,,Temporary Accommodation,Homelessness,C01AA000044051,
http://statistics.data.gov.uk/id/local-authority/29UP,Tonbridge & Malling Borough Council,9/7/2022,0022027017/4,22027017, 100.00,Premier Inn,01217400,,Temporary Accommodation,Homelessness,C01AA000044051,
http://statistics.data.gov.uk/id/local-authority/29UP,Tonbridge & Malling Borough Council,9/7/2022,0022027018/1,22027018, 5933.00,Kent Accommodation Ltd,01722000,,Temporary Accommodation,Homelessness,C01AA000044051,
http://statistics.data.gov.uk/id/local-authority/29UP,Tonbridge & Malling Borough Council,9/7/2022,0022027019/1,22027019, 8602.00,Less Homeless Ltd,01489300,,Temporary Accommodation,Homelessness,C01AA000044051,
http://statistics.data.gov.uk/id/local-authority/29UP,Tonbridge & Malling Borough Council,9/7/2022,0022027020/1,22027020, 38530.00,Paramount Independent Property Suppliers,01595300,,Temporary Accommodation,Homelessness,C01AA000044051,
http://statistics.data.gov.uk/id/local-authority/29UP,Tonbridge & Malling Borough Council,9/7/2022,0022027021/1,22027021, 4975.50,Premier Property Providers,01785400,,Temporary Accommodation,Homelessness,C01AA000044051,
http://statistics.data.gov.uk/id/local-authority/29UP,Tonbridge & Malling Borough Council,9/7/2022,0022027022/1,22027022, 123.75,Sevenoaks District Council,00089300,,Healthy Living Initiatives,Public Health - Healthy Living,H40SYVH0048145,220003220
http://statistics.data.gov.uk/id/local-authority/29UP,Tonbridge & Malling Borough Council,9/7/2022,0022027023/1,22027023, 10044.00,Simon Niblett Lettings,00072600,,Temporary Accommodation,Homelessness,C01AA000044051,
http://statistics.data.gov.uk/id/local-authority/29UP,Tonbridge & Malling Borough Council,9/7/2022,0022027024/1,22027024, 1155.00,Simon Niblett Lettings,00072600,,Temporary Accommodation,Homelessness,C01AA000044051,
http://statistics.data.gov.uk/id/local-authority/29UP,Tonbridge & Malling Borough Council,9/7/2022,0022027025/1,22027025, 2822.00,Simply Rented Ltd ,01691400,,Temporary Accommodation,Homelessness,C01AA000044051,
http://statistics.data.gov.uk/id/local-authority/29UP,Tonbridge & Malling Borough Council,9/7/2022,0022027026/1,22027026, 2229.08,The Care Group-Housing & Care Trust,01699600,,Temporary Accommodation,Homelessness,C01AA000044051,
http://statistics.data.gov.uk/id/local-authority/29UP,Tonbridge & Malling Borough Council,9/7/2022,0022027027/1,22027027, 26904.00,Social & Community Care,01768400,,Temporary Accommodation,Homelessness,C01AA000044051,
http://statistics.data.gov.uk/id/local-authority/29UP,Tonbridge & Malling Borough Council,9/7/2022,0022027028/1,22027028, 527.10,British Gas Services LTD,01260000,,Electricity,Homelessness,C01AA000021002,
http://statistics.data.gov.uk/id/local-authority/29UP,Tonbridge & Malling Borough Council,9/7/2022,0031018830/1,31018830, 2735.51,DSSL Group Ltd,01839500,,Contract Payments,Cap Ren CCTV,P01BA000009904,310042850
http://statistics.data.gov.uk/id/local-authority/29UP,Tonbridge & Malling Borough Council,9/7/2022,0031018830/2,31018830, 155.50,DSSL Group Ltd,01839500,,Contract Payments,Cap Ren CCTV,P01BA000009904,310042850
http://statistics.data.gov.uk/id/local-authority/29UP,Tonbridge & Malling Borough Council,9/7/2022,0031018863/1,31018863, 9.99,REDACTED PERSONAL DATA,01344100,,Maintenance of Grounds,Open Spaces & Amenity Areas,B22LE000020402,
http://statistics.data.gov.uk/id/local-authority/29UP,Tonbridge & Malling Borough Council,9/7/2022,0031018863/2,31018863, 10.00,REDACTED PERSONAL DATA,01344100,,Transport Repair & Maintenance,Parking Off-Street,E10HA000030103,
http://statistics.data.gov.uk/id/local-authority/29UP,Tonbridge & Malling Borough Council,9/7/2022,0031018868/1,31018868, 1465.00,Marston,01485000,,Adjudication & Enforcement Ser,Parking Off-Street,E10HA000044230,
http://statistics.data.gov.uk/id/local-authority/29UP,Tonbridge & Malling Borough Council,9/7/2022,0031018869/3,31018869, 206.33,KCC - L.A.S.E.R Commercial Services ,00184300,,Electricity,Parking Off-Street,E10HA000021002,
http://statistics.data.gov.uk/id/local-authority/29UP,Tonbridge & Malling Borough Council,9/7/2022,0031018870/1,31018870, 81.00,RAC Motoring Services,01815300,,Transport Insurance,Patrolling,B22LF000035001,
http://statistics.data.gov.uk/id/local-authority/29UP,Tonbridge & Malling Borough Council,9/7/2022,0031018870/2,31018870, 162.00,RAC Motoring Services,01815300,,Transport Insurance,Parking Off-Street,E10HA000035001,
http://statistics.data.gov.uk/id/local-authority/29UP,Tonbridge & Malling Borough Council,9/7/2022,0031018870/3,31018870, 243.00,RAC Motoring Services,01815300,,Transport Insurance,Parking On-Street,E10HD000035001,
http://statistics.data.gov.uk/id/local-authority/29UP,Tonbridge & Malling Borough Council,9/7/2022,0031018879/3,31018879, 16.23,B&Q/Screwfix Direct(TradeUKAccount),00141300,,Purchases,Boro Highways & Emergency Oper,E01AA000040101,
http://statistics.data.gov.uk/id/local-authority/29UP,Tonbridge & Malling Borough Council,9/7/2022,0031018881/3,31018881, 2296.00,Tonbridge & Malling Leisure Trust,01469100,,Ticket Refunds - Lower Castle,Parking Off-Street,E10HAE01344199,
http://statistics.data.gov.uk/id/local-authority/29UP,Tonbridge & Malling Borough Council,9/7/2022,0031018882/1,31018882, 140.00,DSSL Group Ltd,01839500,,CCTV Monitoring Station,Security Services Management,E09GA000051020,310042868
http://statistics.data.gov.uk/id/local-authority/29UP,Tonbridge & Malling Borough Council,9/7/2022,0031018883/1,31018883, 200.00,DSSL Group Ltd,01839500,,Maintenance - General,Security Services Management,E09GA000040135,310042867
http://statistics.data.gov.uk/id/local-authority/29UP,Tonbridge & Malling Borough Council,9/7/2022,0031018884/1,31018884, 79.28,Shell U.K. Oil Products Limited,01673300,,"Petrol, Diesel & Oil",Patrolling,B22LF000030106,
http://statistics.data.gov.uk/id/local-authority/29UP,Tonbridge & Malling Borough Council,9/7/2022,0031018884/2,31018884, 78.98,Shell U.K. Oil Products Limited,01673300,,"Petrol, Diesel & Oil",Parking Off-Street,E10HA000030106,
http://statistics.data.gov.uk/id/local-authority/29UP,Tonbridge & Malling Borough Council,9/7/2022,0031018884/3,31018884, 78.99,Shell U.K. Oil Products Limited,01673300,,"Petrol, Diesel & Oil",Parking On-Street,E10HD000030106,
http://statistics.data.gov.uk/id/local-authority/29UP,Tonbridge & Malling Borough Council,9/7/2022,0031018885/1,31018885, 450.00,Wellden Land Surveys,01410600,,Professional Fees,Boro Drainage & Land Drainage,E20MA000044001,310042817
http://statistics.data.gov.uk/id/local-authority/29UP,Tonbridge & Malling Borough Council,9/7/2022,0031018886/1,31018886, 159.94,Royal British Legion Industries Ltd,00139700,,Premises Repairs & Maintenance,Parking Off-Street,E10HA000020601,310042865
http://statistics.data.gov.uk/id/local-authority/29UP,Tonbridge & Malling Borough Council,9/7/2022,0032009754/1,32009754, 1333.00,Carrington West Limited,01844500,,Temporary Staff,Planning Sals&Overheads,D01AJDJ0111300,
http://statistics.data.gov.uk/id/local-authority/29UP,Tonbridge & Malling Borough Council,9/7/2022,0032009755/1,32009755, 2590.00,G2 Recruitment Solutions,01786000,,Temporary Staff,Planning Sals&Overheads,D01AJDJ0111300,
http://statistics.data.gov.uk/id/local-authority/29UP,Tonbridge & Malling Borough Council,9/7/2022,0032009756/1,32009756, 3075.72,G2 Recruitment Solutions,01786000,,Temporary Staff,Planning Sals&Overheads,D01AJDJ0111300,
http://statistics.data.gov.uk/id/local-authority/29UP,Tonbridge & Malling Borough Council,9/7/2022,0032009757/1,32009757, 2060.01,The Oyster Partnership,01196400,,Temporary Staff,Planning Sals&Overheads,D01AJDJ0111300,
http://statistics.data.gov.uk/id/local-authority/29UP,Tonbridge & Malling Borough Council,9/7/2022,0032009758/1,32009758, 1750.10,The Oyster Partnership,01196400,,Temporary Accommodation,Homelessness,C01AA000044051,
http://statistics.data.gov.uk/id/local-authority/29UP,Tonbridge & Malling Borough Council,9/7/2022,0032009759/1,32009759, 1708.70,The Oyster Partnership,01196400,,Temporary Staff,Planning Sals&Overheads,D01AJDJ0111300,
http://statistics.data.gov.uk/id/local-authority/29UP,Tonbridge & Malling Borough Council,9/7/2022,0032009760/1,32009760, 700.00,Debbie Lee Design Ltd,01853300,,Development of Local Plan,Development of Local Plan,A01AE000044023,320003424
http://statistics.data.gov.uk/id/local-authority/29UP,Tonbridge & Malling Borough Council,9/7/2022,0032009761/1,32009761, 6590.00,INOVEM,01732400,,Development of Local Plan,Development of Local Plan,A01AE000044023,320003444
http://statistics.data.gov.uk/id/local-authority/29UP,Tonbridge & Malling Borough Council,9/7/2022,0041034662/1,41034662, 1135.25,L A Directories Ltd,01689700,,Subscriptions,Housing Benefits,C05CL000047002,410032246
http://statistics.data.gov.uk/id/local-authority/29UP,Tonbridge & Malling Borough Council,9/7/2022,0041034663/1,41034663, 971.25,Morgan Hunt UK Ltd,01086900,,Temporary Staff,Finance Sals&Overheads,D01AFDF1111300,
http://statistics.data.gov.uk/id/local-authority/29UP,Tonbridge & Malling Borough Council,9/7/2022,0041034664/1,41034664, 2021.84,Maidstone Borough Council,01173700,,Bailiffs Commission,Local Revenue & NNDR Collect,D41QA000044075,
http://statistics.data.gov.uk/id/local-authority/29UP,Tonbridge & Malling Borough Council,9/7/2022,0041034665/1,41034665, 1983.67,Maidstone Borough Council,01173700,,Bailiffs Commission,Local Revenue & NNDR Collect,D41QA000044075,
http://statistics.data.gov.uk/id/local-authority/29UP,Tonbridge & Malling Borough Council,9/7/2022,0041034666/1,41034666, 16.61,Rundle & Co Ltd,00087200,,Bailiffs Commission,Local Revenue & NNDR Collect,D41QA000044075,
http://statistics.data.gov.uk/id/local-authority/29UP,Tonbridge & Malling Borough Council,9/7/2022,0041034669/3,41034669, 313.09,Morgan Hunt UK Ltd,01086900,,Temporary Staff,Finance Sals&Overheads,D01AFDF1111300,
http://statistics.data.gov.uk/id/local-authority/29UP,Tonbridge & Malling Borough Council,9/7/2022,0041034670/3,41034670, 250.47,Morgan Hunt UK Ltd,01086900,,Temporary Staff,Finance Sals&Overheads,D01AFDF1111300,
http://statistics.data.gov.uk/id/local-authority/29UP,Tonbridge & Malling Borough Council,9/7/2022,0041034671/3,41034671, 971.25,Morgan Hunt UK Ltd,01086900,,Temporary Staff,Finance Sals&Overheads,D01AFDF1111300,
http://statistics.data.gov.uk/id/local-authority/29UP,Tonbridge & Malling Borough Council,9/7/2022,0041034672/1,41034672, 4500.00,NEC Software Solutions UK Ltd,01073900,202159745,Localisation of CTax Benefit,Council Tax Support,D42QF000048060,410032244
http://statistics.data.gov.uk/id/local-authority/29UP,Tonbridge & Malling Borough Council,9/7/2022,0041034673/3,41034673, 1698.29,Rundle & Co Ltd,00087200,,Bailiffs Commission,Local Revenue & NNDR Collect,D41QA000044075,
http://statistics.data.gov.uk/id/local-authority/29UP,Tonbridge & Malling Borough Council,9/7/2022,0041034674/3,41034674, 16.61,Rundle & Co Ltd,00087200,,Bailiffs Commission,Local Revenue & NNDR Collect,D41QA000044075,
http://statistics.data.gov.uk/id/local-authority/29UP,Tonbridge & Malling Borough Council,9/7/2022,0041034676/1,41034676, 1272.55,The Oyster Partnership,01196400,,Temporary Staff,Finance Sals&Overheads,D01AFDF1111300,
http://statistics.data.gov.uk/id/local-authority/29UP,Tonbridge & Malling Borough Council,9/7/2022,0041034677/1,41034677, 20.00,Computershare Voucher Services,01212600,,Childcare Scheme,Finance Sals&Overheads,D01AFDF0911136,
http://statistics.data.gov.uk/id/local-authority/29UP,Tonbridge & Malling Borough Council,9/7/2022,0041034677/2,41034677, 1.40,Computershare Voucher Services,01212600,,National Insurance,Finance Sals&Overheads,D01AFDF0911191,
http://statistics.data.gov.uk/id/local-authority/29UP,Tonbridge & Malling Borough Council,9/7/2022,0041034677/3,41034677, 50.00,Computershare Voucher Services,01212600,,Childcare Scheme,Legal Sals&Overheads,D01ARDR0011136,
http://statistics.data.gov.uk/id/local-authority/29UP,Tonbridge & Malling Borough Council,9/7/2022,0041034677/4,41034677, 3.50,Computershare Voucher Services,01212600,,National Insurance,Legal Sals&Overheads,D01ARDR0011191,
http://statistics.data.gov.uk/id/local-authority/29UP,Tonbridge & Malling Borough Council,9/7/2022,0041034677/5,41034677, 20.00,Computershare Voucher Services,01212600,,Childcare Scheme,Env Hlth & Hsg Sals&Overheads,D01AVDV0211136,
http://statistics.data.gov.uk/id/local-authority/29UP,Tonbridge & Malling Borough Council,9/7/2022,0041034677/6,41034677, 1.40,Computershare Voucher Services,01212600,,National Insurance,Env Hlth & Hsg Sals&Overheads,D01AVDV0211191,
http://statistics.data.gov.uk/id/local-authority/29UP,Tonbridge & Malling Borough Council,9/7/2022,0041034677/7,41034677, 243.00,Computershare Voucher Services,01212600,,Childcare Scheme,Env Hlth & Hsg Sals&Overheads,D01AVDV0711136,
http://statistics.data.gov.uk/id/local-authority/29UP,Tonbridge & Malling Borough Council,9/7/2022,0041034677/8,41034677, 17.01,Computershare Voucher Services,01212600,,National Insurance,Env Hlth & Hsg Sals&Overheads,D01AVDV0711191,
http://statistics.data.gov.uk/id/local-authority/29UP,Tonbridge & Malling Borough Council,9/7/2022,0051008741/1,51008741, 130.00,Ferret Information Systems,01023100,,Ext Fees/Prof & Tech,Training,D10DCDV0913561,510010591
http://statistics.data.gov.uk/id/local-authority/29UP,Tonbridge & Malling Borough Council,9/9/2022,0041034682/1,41034682, 100.00,The Royal British Legion Kent County,01863100,,Hospitality,Mayoral & Other Member Support,D29LX000048003,
http://statistics.data.gov.uk/id/local-authority/29UP,Tonbridge & Malling Borough Council,9/13/2022,0041034713/1,41034713, 9350.00,FeastFamiliesEating and Sharing Together,01786600,,Charitable / Voluntary Organis,Grants & Payments to Vol Orgn,D37PACV1947005,
http://statistics.data.gov.uk/id/local-authority/29UP,Tonbridge & Malling Borough Council,9/13/2022,0041034714/1,41034714, 6000.00,PPE Supplies Direct,01863900,,Charitable / Voluntary Organis,Grants & Payments to Vol Orgn,D37PACV1947005,
http://statistics.data.gov.uk/id/local-authority/29UP,Tonbridge & Malling Borough Council,9/13/2022,0041034715/1,41034715, 1000.00,St Peter & St Pauls Church Aylesford,01786400,,Charitable / Voluntary Organis,Grants & Payments to Vol Orgn,D37PACV1947005,
http://statistics.data.gov.uk/id/local-authority/29UP,Tonbridge & Malling Borough Council,9/13/2022,0041034716/1,41034716, 6000.00,Leybourne PC Fundraising,01834600,,Charitable / Voluntary Organis,Grants & Payments to Vol Orgn,D37PACV1947005,
http://statistics.data.gov.uk/id/local-authority/29UP,Tonbridge & Malling Borough Council,9/13/2022,0041034717/1,41034717, 5300.00,REDACTED PERSONAL DATA,01864000,,Charitable / Voluntary Organis,Grants & Payments to Vol Orgn,D37PACV1947005,
http://statistics.data.gov.uk/id/local-authority/29UP,Tonbridge & Malling Borough Council,9/14/2022,0011044860/3,11044860, 339.48,Chubb Fire & Security Ltd,00115400,174605362,BRREP Servicing-IntruderAlarm,Tonbridge Swimming Pool,M15HBP20001939,
http://statistics.data.gov.uk/id/local-authority/29UP,Tonbridge & Malling Borough Council,9/14/2022,0011044861/1,11044861, 140.77,Dalesauna Ltd,00026800,,BRREP Plant renewals,Larkfield Leisure Centre,M15HDP20001909,110069712
http://statistics.data.gov.uk/id/local-authority/29UP,Tonbridge & Malling Borough Council,9/14/2022,0011044862/1,11044862, 208.00,Southern Lightning Engineers Ltd,00094000,,BRREP Servicing-Lightning Prot,Tonbridge Castle Gatehouse,M15HKP20001942,110069657
http://statistics.data.gov.uk/id/local-authority/29UP,Tonbridge & Malling Borough Council,9/14/2022,0011044863/1,11044863, 258.00,BML Building Services Ltd,01505000,,BRREP Window/door repairs,Leis Man Poult Wood Golf Centr,M15HEP20001919,110069716
http://statistics.data.gov.uk/id/local-authority/29UP,Tonbridge & Malling Borough Council,9/14/2022,0011044864/1,11044864, 2438.00,Coolburn Air Conditioning Ltd,01137900,,BRREP Servicing - air handling,Larkfield Leisure Centre,M15HDP20001936,110069766
http://statistics.data.gov.uk/id/local-authority/29UP,Tonbridge & Malling Borough Council,9/14/2022,0011044865/1,11044865, 112.00,East Sussex Fire Ltd,01843100,,Repairs & Mtce to Buildings,Homelessness,C01AATNHS20101,110069587
http://statistics.data.gov.uk/id/local-authority/29UP,Tonbridge & Malling Borough Council,9/14/2022,0011044866/1,11044866, 5000.00,Gooch Cunliffe Whale,01843300,,Professional Fees,Land Review,D40PS000044001,110069769
http://statistics.data.gov.uk/id/local-authority/29UP,Tonbridge & Malling Borough Council,9/14/2022,0011044867/1,11044867, 299.00,Southern Lightning Engineers Ltd,00094000,,BRREP Servicing-Lightning Prot,Larkfield Leisure Centre,M15HDP20001942,110069684
http://statistics.data.gov.uk/id/local-authority/29UP,Tonbridge & Malling Borough Council,9/14/2022,0011044868/1,11044868, 682.52,NLC Nova Lift Company Ltd,01735600,,BRREP Servicing - lifts,Leis Man Poult Wood Golf Centr,M15HEP20001930,110069645
http://statistics.data.gov.uk/id/local-authority/29UP,Tonbridge & Malling Borough Council,9/14/2022,0011044869/1,11044869, 600.00,Endo Enterprises Ltd,01854300,,BRREP Servicing - pool plant,Larkfield Leisure Centre,M15HDP20001910,110069639
http://statistics.data.gov.uk/id/local-authority/29UP,Tonbridge & Malling Borough Council,9/14/2022,0011044870/1,11044870, 53.40,Biffa Waste Services Ltd,01284500,,Trade Refuse Charges,Cleaning & Security,D21FD000044008,
http://statistics.data.gov.uk/id/local-authority/29UP,Tonbridge & Malling Borough Council,9/14/2022,0011044871/1,11044871, 192.78,KM Media Group Ltd,00053900,,Estate Management Charge,Land Review,D40PS000020400,
http://statistics.data.gov.uk/id/local-authority/29UP,Tonbridge & Malling Borough Council,9/14/2022,0011044872/1,11044872, 182.90,Biffa Waste Services Ltd,01284500,,Trade Refuse Charges,Cleaning & Security,D21FD000044008,
http://statistics.data.gov.uk/id/local-authority/29UP,Tonbridge & Malling Borough Council,9/14/2022,0011044873/1,11044873, 53.40,Biffa Waste Services Ltd,01284500,,Trade Refuse Charges,Cleaning & Security,D21FD000044008,
http://statistics.data.gov.uk/id/local-authority/29UP,Tonbridge & Malling Borough Council,9/14/2022,0011044874/1,11044874, 138.69,Biffa Waste Services Ltd,01284500,,Trade Refuse Charges,Cleaning & Security,D21FD000044008,
http://statistics.data.gov.uk/id/local-authority/29UP,Tonbridge & Malling Borough Council,9/14/2022,0011044875/1,11044875, 93.40,Biffa Waste Services Ltd,01284500,,Trade Refuse Charges,Cleaning & Security,D21FD000044008,
http://statistics.data.gov.uk/id/local-authority/29UP,Tonbridge & Malling Borough Council,9/14/2022,0011044876/1,11044876, 246.56,Biffa Waste Services Ltd,01284500,,Trade Refuse Charges,Cleaning & Security,D21FD000044008,
http://statistics.data.gov.uk/id/local-authority/29UP,Tonbridge & Malling Borough Council,9/14/2022,0011044877/1,11044877, 742.00,Canon (UK) Limited,00298700,,Purchases - Paper,Printing,D22GA000040102,
http://statistics.data.gov.uk/id/local-authority/29UP,Tonbridge & Malling Borough Council,9/14/2022,0011044878/1,11044878, 410.00,G C Industrial Heating Services,00578100,,BRREP Response - General,Tonbridge Swimming Pool,M15HBP50001997,
http://statistics.data.gov.uk/id/local-authority/29UP,Tonbridge & Malling Borough Council,9/14/2022,0011044879/1,11044879, 840.68,White Light Ltd,00872700,,Maintenance - General,Tonbridge Castle Gatehouse,B40TG000040135,
http://statistics.data.gov.uk/id/local-authority/29UP,Tonbridge & Malling Borough Council,9/14/2022,0011044880/1,11044880, 340.00,Thomson Snell & Passmore,00101700,,Legal Fees,Legal Sals&Overheads,D01ARDR0044002,
http://statistics.data.gov.uk/id/local-authority/29UP,Tonbridge & Malling Borough Council,9/14/2022,0011044881/1,11044881, 204.00,Thomson Snell & Passmore,00101700,,Legal Fees,Legal Sals&Overheads,D01ARDR0044002,
http://statistics.data.gov.uk/id/local-authority/29UP,Tonbridge & Malling Borough Council,9/14/2022,0011044882/1,11044882, 461.97,KH Recruitment Ltd,01738900,,Temporary Staff,Personnel Sals&Overheads,D01ABDB0311300,
http://statistics.data.gov.uk/id/local-authority/29UP,Tonbridge & Malling Borough Council,9/14/2022,0011044883/1,11044883, 1711.49,Kent County Council,00322500,,Kent Highways,Local Land Charges,D35NK000044240,
http://statistics.data.gov.uk/id/local-authority/29UP,Tonbridge & Malling Borough Council,9/14/2022,0011044884/1,11044884, 786.00,Thomson Snell & Passmore,00101700,,Legal Fees,Legal Sals&Overheads,D01ARDR0044002,
http://statistics.data.gov.uk/id/local-authority/29UP,Tonbridge & Malling Borough Council,9/14/2022,0011044885/1,11044885, 636.16,Venn Group Ltd,00914300,,Temporary Staff,Legal Sals&Overheads,D01ARDR0011300,
http://statistics.data.gov.uk/id/local-authority/29UP,Tonbridge & Malling Borough Council,9/14/2022,0011044886/1,11044886, 339.20,Castle Water,01696500,,Estate Management Charge,Land Review,D40PS000020400,
http://statistics.data.gov.uk/id/local-authority/29UP,Tonbridge & Malling Borough Council,9/14/2022,0011044887/1,11044887, 344.83,Initial Washroom Hygiene,00048300,,Cleaning & Domestic Supplies,Cleaning & Security,D21FD000026001,
http://statistics.data.gov.uk/id/local-authority/29UP,Tonbridge & Malling Borough Council,9/14/2022,0011044888/1,11044888, 86.28,Atlas Facilities Managment Limited ,01075900,,Miscellaneous Services,Cleaning & Security,D21FDDD6044015,
http://statistics.data.gov.uk/id/local-authority/29UP,Tonbridge & Malling Borough Council,9/14/2022,0011044889/1,11044889, 135.79,Royal Mail,00086200,,Purchases,Business Reply Stock Account,K14AT000001002,
http://statistics.data.gov.uk/id/local-authority/29UP,Tonbridge & Malling Borough Council,9/14/2022,0011044890/1,11044890, 15001.45,Royal Mail,00086200,,Postages - PPI / Walksort,Conduct of Elections,D31MG000045017,
http://statistics.data.gov.uk/id/local-authority/29UP,Tonbridge & Malling Borough Council,9/14/2022,0011044890/2,11044890, 1817.90,Royal Mail,00086200,,Purchases,Mailsort Stock Account,K37BR000001002,
http://statistics.data.gov.uk/id/local-authority/29UP,Tonbridge & Malling Borough Council,9/14/2022,0011044890/3,11044890, 3.50,Royal Mail,00086200,,Purchases,Mailsort Stock Account,K37BR000001002,
http://statistics.data.gov.uk/id/local-authority/29UP,Tonbridge & Malling Borough Council,9/14/2022,0011044890/4,11044890, 17.37,Royal Mail,00086200,,Purchases,Mailsort Stock Account,K37BR000001002,
http://statistics.data.gov.uk/id/local-authority/29UP,Tonbridge & Malling Borough Council,9/14/2022,0011044891/1,11044891, 360.00,Marine And Industrial Pump Services,00062800,,BRREP Servicing - sump pumps,Tonbridge Swimming Pool,M15HBP20001911,110069733
http://statistics.data.gov.uk/id/local-authority/29UP,Tonbridge & Malling Borough Council,9/14/2022,0011044892/1,11044892, 134.05,Scottish Water Business Stream Ltd,01641100,,Estate Management Charge,Land Review,D40PS000020400,
http://statistics.data.gov.uk/id/local-authority/29UP,Tonbridge & Malling Borough Council,9/14/2022,0021038143/1,21038143, 60.00,Medway Valley Countryside PartnershipKCC,00780000,,Partnership Fees,Youth Partnerships,B33PG000044048,210056954
http://statistics.data.gov.uk/id/local-authority/29UP,Tonbridge & Malling Borough Council,9/14/2022,0021038144/1,21038144, 557.66,Rainmaker Irrigation Co. Ltd,01140300,,Maintenance of Grounds,Sports Grounds,B13ET000020402,210056897
http://statistics.data.gov.uk/id/local-authority/29UP,Tonbridge & Malling Borough Council,9/14/2022,0021038144/2,21038144, 12.80,Rainmaker Irrigation Co. Ltd,01140300,,Maintenance of Grounds,Sports Grounds,B13ET000020402,210056897
http://statistics.data.gov.uk/id/local-authority/29UP,Tonbridge & Malling Borough Council,9/14/2022,0021038144/3,21038144, 15.00,Rainmaker Irrigation Co. Ltd,01140300,,Maintenance of Grounds,Sports Grounds,B13ET000020402,210056897
http://statistics.data.gov.uk/id/local-authority/29UP,Tonbridge & Malling Borough Council,9/14/2022,0021038144/4,21038144, 291.00,Rainmaker Irrigation Co. Ltd,01140300,,Maintenance of Grounds,Sports Grounds,B13ET000020402,210056897
http://statistics.data.gov.uk/id/local-authority/29UP,Tonbridge & Malling Borough Council,9/14/2022,0021038145/1,21038145, 250.00,SWS Countryside & Landscape,01567200,,Maintenance of Grounds,Open Spaces & Amenity Areas,B22LE000020402,210056942
http://statistics.data.gov.uk/id/local-authority/29UP,Tonbridge & Malling Borough Council,9/14/2022,0021038145/2,21038145, 550.00,SWS Countryside & Landscape,01567200,,Maintenance of Grounds,Open Spaces & Amenity Areas,B22LE000020402,210056942
http://statistics.data.gov.uk/id/local-authority/29UP,Tonbridge & Malling Borough Council,9/14/2022,0021038146/1,21038146, 60.00,SWS Countryside & Landscape,01567200,,Maintenance of Grounds,Open Spaces & Amenity Areas,B22LE000020402,210056941
http://statistics.data.gov.uk/id/local-authority/29UP,Tonbridge & Malling Borough Council,9/14/2022,0021038147/1,21038147, 225.00,SWS Countryside & Landscape,01567200,,Health & Safety - Trees,Countryside/Woodland Mgt,B22LG000044045,210056943
http://statistics.data.gov.uk/id/local-authority/29UP,Tonbridge & Malling Borough Council,9/14/2022,0021038147/2,21038147, 100.00,SWS Countryside & Landscape,01567200,,Health & Safety - Trees,Countryside/Woodland Mgt,B22LG000044045,210056943
http://statistics.data.gov.uk/id/local-authority/29UP,Tonbridge & Malling Borough Council,9/14/2022,0021038148/1,21038148, 1200.00,SWS Countryside & Landscape,01567200,,Maintenance of Grounds,Grounds,D21FF000020402,210056929
http://statistics.data.gov.uk/id/local-authority/29UP,Tonbridge & Malling Borough Council,9/14/2022,0021038149/1,21038149, 80.00,SWS Countryside & Landscape,01567200,,Maintenance of Grounds,Open Spaces & Amenity Areas,B22LE000020402,210056930
http://statistics.data.gov.uk/id/local-authority/29UP,Tonbridge & Malling Borough Council,9/14/2022,0021038150/1,21038150, 200.00,SWS Countryside & Landscape,01567200,,Health & Safety - Trees,Countryside/Woodland Mgt,B22LG000044045,210056933
http://statistics.data.gov.uk/id/local-authority/29UP,Tonbridge & Malling Borough Council,9/14/2022,0021038150/2,21038150, 80.00,SWS Countryside & Landscape,01567200,,Health & Safety - Trees,Countryside/Woodland Mgt,B22LG000044045,210056933
http://statistics.data.gov.uk/id/local-authority/29UP,Tonbridge & Malling Borough Council,9/14/2022,0021038150/3,21038150, 250.00,SWS Countryside & Landscape,01567200,,Health & Safety - Trees,Countryside/Woodland Mgt,B22LG000044045,210056933
http://statistics.data.gov.uk/id/local-authority/29UP,Tonbridge & Malling Borough Council,9/14/2022,0021038151/1,21038151, 225.00,SWS Countryside & Landscape,01567200,,Health & Safety - Trees,Countryside/Woodland Mgt,B22LG000044045,210056933
http://statistics.data.gov.uk/id/local-authority/29UP,Tonbridge & Malling Borough Council,9/14/2022,0021038152/1,21038152, 250.00,SWS Countryside & Landscape,01567200,,Health & Safety - Trees,Countryside/Woodland Mgt,B22LG000044045,210056918
http://statistics.data.gov.uk/id/local-authority/29UP,Tonbridge & Malling Borough Council,9/14/2022,0021038153/1,21038153, 465.00,David Hodgkinson Photographer,01068900,,Marketing,Events Development,B41TJZ99944215,210056915
http://statistics.data.gov.uk/id/local-authority/29UP,Tonbridge & Malling Borough Council,9/14/2022,0021038154/1,21038154, 963.40,David Hodgkinson Photographer,01068900,,Events Support,Events Development,B41TJ000044041,210056916
http://statistics.data.gov.uk/id/local-authority/29UP,Tonbridge & Malling Borough Council,9/14/2022,0021038155/1,21038155, 700.00,Matt Stephens,01802100,,Other Expenses,Items Funded from Reserves,D51LYDY0648010,
http://statistics.data.gov.uk/id/local-authority/29UP,Tonbridge & Malling Borough Council,9/14/2022,0021038156/1,21038156, 15.43,Upper Medway Internal Drainage Board,00109100,,Maintenance of Grounds,Countryside/Woodland Mgt,B22LG000020402,
http://statistics.data.gov.uk/id/local-authority/29UP,Tonbridge & Malling Borough Council,9/14/2022,0021038157/1,21038157, 230.00,Alltree Consultancy Ltd,01668300,,Health & Safety - Trees,Countryside/Woodland Mgt,B22LG000044045,210056952
http://statistics.data.gov.uk/id/local-authority/29UP,Tonbridge & Malling Borough Council,9/14/2022,0021038158/1,21038158, 325.00,Flash Mobile Welding Services Ltd,01189200,,Maintenance of Grounds,Tonbridge Castle Grounds,B22LB000020402,210056904
http://statistics.data.gov.uk/id/local-authority/29UP,Tonbridge & Malling Borough Council,9/14/2022,0021038159/1,21038159, 64.09,Initial Washroom Hygiene,00048300,,Cleaning & Domestic Supplies,Haysden Country Park,B22LC000026001,
http://statistics.data.gov.uk/id/local-authority/29UP,Tonbridge & Malling Borough Council,9/14/2022,0021038160/1,21038160, 162.50,Medway Valley Countryside PartnershipKCC,00780000,,Maintenance of Grounds,Open Spaces & Amenity Areas,B22LE000020402,210056807
http://statistics.data.gov.uk/id/local-authority/29UP,Tonbridge & Malling Borough Council,9/14/2022,0021038161/1,21038161, 8.80,South East Water Ltd,01330300,,Maintenance of Grounds,Haysden Country Park,B22LC000020402,210056912
http://statistics.data.gov.uk/id/local-authority/29UP,Tonbridge & Malling Borough Council,9/14/2022,0021038162/1,21038162, 455.00,Westway Fencing and Garden Services,00159700,,Maintenance of Grounds,Open Spaces & Amenity Areas,B22LE000020402,210056771
http://statistics.data.gov.uk/id/local-authority/29UP,Tonbridge & Malling Borough Council,9/14/2022,0022027029/1,22027029, 5535.00,Adaptec Mobilty Ltd,01785800,339578354,Other Expenses,Disabled Facilities Grant Mand,P03AC000009908,
http://statistics.data.gov.uk/id/local-authority/29UP,Tonbridge & Malling Borough Council,9/14/2022,0022027030/1,22027030, 797.04,Town & Country Housing Group,01385400,,Other Expenses,Disabled Facilities Grant Mand,P03AC000009908,
http://statistics.data.gov.uk/id/local-authority/29UP,Tonbridge & Malling Borough Council,9/14/2022,0022027031/3,22027031, 4052.48,Ward Security LTD,01490000,,Dog Warden,Street Scene,H23SD000044100,
http://statistics.data.gov.uk/id/local-authority/29UP,Tonbridge & Malling Borough Council,9/14/2022,0022027032/1,22027032, 479.60,Craemer UK LTD,01616400,,Initial Furniture & Equipment,Refuse Bins Growth/Replacement,P02DA000009906,220003266
http://statistics.data.gov.uk/id/local-authority/29UP,Tonbridge & Malling Borough Council,9/14/2022,0022027033/1,22027033, 1100.00,Less Homeless Ltd,01489300,,Other Expenses,Ukrainian Refugee Assistance,D54UA000048010,
http://statistics.data.gov.uk/id/local-authority/29UP,Tonbridge & Malling Borough Council,9/14/2022,0022027034/3,22027034, 46.67,REDACTED PERSONAL DATA,00887000,,Electricity,Homelessness,C01AA000021002,
http://statistics.data.gov.uk/id/local-authority/29UP,Tonbridge & Malling Borough Council,9/14/2022,0022027035/1,22027035, 42.99,B&Q/Screwfix Direct(TradeUKAccount),00141300,,Purchases,Street Scene,H23SD000040101,
http://statistics.data.gov.uk/id/local-authority/29UP,Tonbridge & Malling Borough Council,9/14/2022,0022027036/3,22027036, 278.37,British Gas,01148500,,Electricity,Homelessness,C01AA000021002,
http://statistics.data.gov.uk/id/local-authority/29UP,Tonbridge & Malling Borough Council,9/14/2022,0022027037/3,22027037, 158.55,British Gas Services LTD,01260000,,Electricity,Homelessness,C01AAMAUN21002,
http://statistics.data.gov.uk/id/local-authority/29UP,Tonbridge & Malling Borough Council,9/14/2022,0022027038/3,22027038, 126.09,British Gas Services LTD,01260000,,Electricity,Homelessness,C01AAMAUN21002,
http://statistics.data.gov.uk/id/local-authority/29UP,Tonbridge & Malling Borough Council,9/14/2022,0022027039/3,22027039, 43.15,Bulb Energy Ltd,01799000,214948301,Electricity,Homelessness,C01AA000021002,
http://statistics.data.gov.uk/id/local-authority/29UP,Tonbridge & Malling Borough Council,9/14/2022,0022027039/4,22027039, 10.25,Bulb Energy Ltd,01799000,214948301,Electricity,Homelessness,C01AA000021002,
http://statistics.data.gov.uk/id/local-authority/29UP,Tonbridge & Malling Borough Council,9/14/2022,0022027040/3,22027040, 490.00,Countrystyle Group,00835900,781981681,Collection of Card,Dry Recycling,H34SR000054008,
http://statistics.data.gov.uk/id/local-authority/29UP,Tonbridge & Malling Borough Council,9/14/2022,0022027041/3,22027041, 1150.00,On Site Wheelie Washers,01069700,,Other Expenses,Refuse Collection,H20SA000048010,
http://statistics.data.gov.uk/id/local-authority/29UP,Tonbridge & Malling Borough Council,9/14/2022,0022027042/3,22027042, 3350.00,On Site Wheelie Washers,01069700,,General Maintenance,Dry Recycling,H34SR000020301,
http://statistics.data.gov.uk/id/local-authority/29UP,Tonbridge & Malling Borough Council,9/14/2022,0022027043/1,22027043, 265.65,British Gas Services LTD,01260000,,Electricity,Homelessness,C01AA000021002,
http://statistics.data.gov.uk/id/local-authority/29UP,Tonbridge & Malling Borough Council,9/14/2022,0022027044/1,22027044, 4100.00,Dolphin Stairlifts,00698900,,Other Expenses,Disabled Facilities Grant Mand,P03AC000009908,
http://statistics.data.gov.uk/id/local-authority/29UP,Tonbridge & Malling Borough Council,9/14/2022,0022027045/1,22027045, 532.80,Town & Country Housing Group,01385400,,Other Expenses,Disabled Facilities Grant Mand,P03AC000009908,
http://statistics.data.gov.uk/id/local-authority/29UP,Tonbridge & Malling Borough Council,9/14/2022,0031018887/3,31018887, 506.44,CDER Group,01773300,,Adjudication & Enforcement Ser,Parking Off-Street,E10HA000044230,
http://statistics.data.gov.uk/id/local-authority/29UP,Tonbridge & Malling Borough Council,9/14/2022,0031018888/4,31018888, 143.62,Npower Ltd,01675800,,Electricity,Parking Off-Street,E10HA000021002,
http://statistics.data.gov.uk/id/local-authority/29UP,Tonbridge & Malling Borough Council,9/14/2022,0031018888/5,31018888, 6.49,Npower Ltd,01675800,,Electricity,Parking Off-Street,E10HA000021002,
http://statistics.data.gov.uk/id/local-authority/29UP,Tonbridge & Malling Borough Council,9/14/2022,0031018889/4,31018889, 1.16,Npower Ltd,01675800,,Electricity,Parking Off-Street,E10HA000021002,
http://statistics.data.gov.uk/id/local-authority/29UP,Tonbridge & Malling Borough Council,9/14/2022,0031018889/5,31018889, 30.74,Npower Ltd,01675800,,Electricity,Parking Off-Street,E10HA000021002,
http://statistics.data.gov.uk/id/local-authority/29UP,Tonbridge & Malling Borough Council,9/14/2022,0031018890/4,31018890, 1.88,Npower Ltd,01675800,,Electricity,Parking Off-Street,E10HA000021002,
http://statistics.data.gov.uk/id/local-authority/29UP,Tonbridge & Malling Borough Council,9/14/2022,0031018890/5,31018890, 49.25,Npower Ltd,01675800,,Electricity,Parking Off-Street,E10HA000021002,
http://statistics.data.gov.uk/id/local-authority/29UP,Tonbridge & Malling Borough Council,9/14/2022,0031018898/1,31018898, 25.06,KelticLimited,01000400,,Uniforms,Parking Off-Street,E10HA000042002,310042863
http://statistics.data.gov.uk/id/local-authority/29UP,Tonbridge & Malling Borough Council,9/14/2022,0031018898/10,31018898, 3.98,KelticLimited,01000400,,Uniforms,Parking Off-Street,E10HA000042002,310042863
http://statistics.data.gov.uk/id/local-authority/29UP,Tonbridge & Malling Borough Council,9/14/2022,0031018898/11,31018898, 12.00,KelticLimited,01000400,,Uniforms,Parking Off-Street,E10HA000042002,310042863
http://statistics.data.gov.uk/id/local-authority/29UP,Tonbridge & Malling Borough Council,9/14/2022,0031018898/12,31018898, 23.70,KelticLimited,01000400,,Uniforms,Parking On-Street,E10HD000042002,310042863
http://statistics.data.gov.uk/id/local-authority/29UP,Tonbridge & Malling Borough Council,9/14/2022,0031018898/13,31018898, 18.00,KelticLimited,01000400,,Uniforms,Parking On-Street,E10HD000042002,310042863
http://statistics.data.gov.uk/id/local-authority/29UP,Tonbridge & Malling Borough Council,9/14/2022,0031018898/14,31018898, 11.97,KelticLimited,01000400,,Uniforms,Parking On-Street,E10HD000042002,310042863
http://statistics.data.gov.uk/id/local-authority/29UP,Tonbridge & Malling Borough Council,9/14/2022,0031018898/15,31018898, 39.54,KelticLimited,01000400,,Uniforms,Parking On-Street,E10HD000042002,310042863
http://statistics.data.gov.uk/id/local-authority/29UP,Tonbridge & Malling Borough Council,9/14/2022,0031018898/16,31018898, 35.97,KelticLimited,01000400,,Uniforms,Parking On-Street,E10HD000042002,310042863
http://statistics.data.gov.uk/id/local-authority/29UP,Tonbridge & Malling Borough Council,9/14/2022,0031018898/17,31018898, 53.97,KelticLimited,01000400,,Uniforms,Parking On-Street,E10HD000042002,310042863
http://statistics.data.gov.uk/id/local-authority/29UP,Tonbridge & Malling Borough Council,9/14/2022,0031018898/18,31018898, 35.37,KelticLimited,01000400,,Uniforms,Parking On-Street,E10HD000042002,310042863
http://statistics.data.gov.uk/id/local-authority/29UP,Tonbridge & Malling Borough Council,9/14/2022,0031018898/19,31018898, 50.97,KelticLimited,01000400,,Uniforms,Parking On-Street,E10HD000042002,310042863
http://statistics.data.gov.uk/id/local-authority/29UP,Tonbridge & Malling Borough Council,9/14/2022,0031018898/2,31018898, 26.36,KelticLimited,01000400,,Uniforms,Parking Off-Street,E10HA000042002,310042863
http://statistics.data.gov.uk/id/local-authority/29UP,Tonbridge & Malling Borough Council,9/14/2022,0031018898/20,31018898, 37.59,KelticLimited,01000400,,Uniforms,Parking On-Street,E10HD000042002,310042863
http://statistics.data.gov.uk/id/local-authority/29UP,Tonbridge & Malling Borough Council,9/14/2022,0031018898/21,31018898, 39.54,KelticLimited,01000400,,Uniforms,Parking On-Street,E10HD000042002,310042863
http://statistics.data.gov.uk/id/local-authority/29UP,Tonbridge & Malling Borough Council,9/14/2022,0031018898/22,31018898, 5.97,KelticLimited,01000400,,Uniforms,Parking On-Street,E10HD000042002,310042863
http://statistics.data.gov.uk/id/local-authority/29UP,Tonbridge & Malling Borough Council,9/14/2022,0031018898/3,31018898, 33.98,KelticLimited,01000400,,Uniforms,Parking Off-Street,E10HA000042002,310042863
http://statistics.data.gov.uk/id/local-authority/29UP,Tonbridge & Malling Borough Council,9/14/2022,0031018898/4,31018898, 35.98,KelticLimited,01000400,,Uniforms,Parking Off-Street,E10HA000042002,310042863
http://statistics.data.gov.uk/id/local-authority/29UP,Tonbridge & Malling Borough Council,9/14/2022,0031018898/5,31018898, 23.58,KelticLimited,01000400,,Uniforms,Parking Off-Street,E10HA000042002,310042863
http://statistics.data.gov.uk/id/local-authority/29UP,Tonbridge & Malling Borough Council,9/14/2022,0031018898/6,31018898, 23.98,KelticLimited,01000400,,Uniforms,Parking Off-Street,E10HA000042002,310042863
http://statistics.data.gov.uk/id/local-authority/29UP,Tonbridge & Malling Borough Council,9/14/2022,0031018898/7,31018898, 26.36,KelticLimited,01000400,,Uniforms,Parking Off-Street,E10HA000042002,310042863
http://statistics.data.gov.uk/id/local-authority/29UP,Tonbridge & Malling Borough Council,9/14/2022,0031018898/8,31018898, 7.98,KelticLimited,01000400,,Uniforms,Parking Off-Street,E10HA000042002,310042863
http://statistics.data.gov.uk/id/local-authority/29UP,Tonbridge & Malling Borough Council,9/14/2022,0031018898/9,31018898, 15.80,KelticLimited,01000400,,Uniforms,Parking Off-Street,E10HA000042002,310042863
http://statistics.data.gov.uk/id/local-authority/29UP,Tonbridge & Malling Borough Council,9/14/2022,0032009763/1,32009763, 924.00,REDACTED PERSONAL DATA,01862900,,Application & Appeals,Development Management,A01AB000044194,
http://statistics.data.gov.uk/id/local-authority/29UP,Tonbridge & Malling Borough Council,9/14/2022,0032009764/3,32009764, 1050.00,G2 Recruitment Solutions,01786000,,Temporary Staff,Planning Sals&Overheads,D01AJDJ0111300,
http://statistics.data.gov.uk/id/local-authority/29UP,Tonbridge & Malling Borough Council,9/14/2022,0032009765/3,32009765, 2710.07,G2 Recruitment Solutions,01786000,,Temporary Staff,Planning Sals&Overheads,D01AJDJ0111300,
http://statistics.data.gov.uk/id/local-authority/29UP,Tonbridge & Malling Borough Council,9/14/2022,0032009766/1,32009766, 192.78,KM Media Group Ltd,00053900,,Advertising General,Development Management,A01ABZ99944216,320003437
http://statistics.data.gov.uk/id/local-authority/29UP,Tonbridge & Malling Borough Council,9/14/2022,0032009767/3,32009767, 1739.00,The Oyster Partnership,01196400,,Temporary Staff,Planning Sals&Overheads,D01AJDJ0111300,
http://statistics.data.gov.uk/id/local-authority/29UP,Tonbridge & Malling Borough Council,9/14/2022,0032009768/3,32009768, 1655.50,The Oyster Partnership,01196400,,Temporary Staff,Planning Sals&Overheads,D01AJDJ0111300,
http://statistics.data.gov.uk/id/local-authority/29UP,Tonbridge & Malling Borough Council,9/14/2022,0032009769/1,32009769, 480.67,Landscape Services Ltd,00057600,,Grounds Maintenance Contract,Cemetery,B26MP000050103,
http://statistics.data.gov.uk/id/local-authority/29UP,Tonbridge & Malling Borough Council,9/14/2022,0032009771/1,32009771, 139.23,KM Media Group Ltd,00053900,,Advertising General,Development Management,A01ABZ99944216,320003438
http://statistics.data.gov.uk/id/local-authority/29UP,Tonbridge & Malling Borough Council,9/14/2022,0032009772/1,32009772, 1656.00,Arc4,01652100,,Development of Local Plan,Development of Local Plan,A01AE000044023,320003443
http://statistics.data.gov.uk/id/local-authority/29UP,Tonbridge & Malling Borough Council,9/14/2022,0032009773/1,32009773, 1267.15,Tunbridge Wells Borough Council,00844600,,Temporary Staff,Planning Sals&Overheads,D01AJDJ0111300,
http://statistics.data.gov.uk/id/local-authority/29UP,Tonbridge & Malling Borough Council,9/14/2022,0032009774/1,32009774, 1575.00,Hadlow Parish Council,00041400,,Payments,S106 - Commuted Sums,M04AD000001001,
http://statistics.data.gov.uk/id/local-authority/29UP,Tonbridge & Malling Borough Council,9/14/2022,0032009775/1,32009775, 4797.91,Independent Reviews Ltd,01657100,,Temporary Staff,Env Hlth & Hsg Sals&Overheads,D01AVDV0711300,
http://statistics.data.gov.uk/id/local-authority/29UP,Tonbridge & Malling Borough Council,9/14/2022,0041034719/1,41034719, 11000.00,Citizens Advice North and West Kent ,01617600,,Charitable / Voluntary Organis,Grants & Payments to Vol Orgn,D37PACV1947005,
http://statistics.data.gov.uk/id/local-authority/29UP,Tonbridge & Malling Borough Council,9/14/2022,0041034720/1,41034720, 3900.00,St Johns Church - Hildenborough PC,01834400,,Charitable / Voluntary Organis,Grants & Payments to Vol Orgn,D37PACV1947005,
http://statistics.data.gov.uk/id/local-authority/29UP,Tonbridge & Malling Borough Council,9/14/2022,0041034721/1,41034721, 20000.00,Tonbridge Baptist Church,00401200,,Charitable / Voluntary Organis,Grants & Payments to Vol Orgn,D37PACV1947005,
http://statistics.data.gov.uk/id/local-authority/29UP,Tonbridge & Malling Borough Council,9/15/2022,0041034723/1,41034723, 2000.00,Church of the Good Shepherd,01369900,,Charitable / Voluntary Organis,Grants & Payments to Vol Orgn,D37PACV1947005,
http://statistics.data.gov.uk/id/local-authority/29UP,Tonbridge & Malling Borough Council,9/15/2022,0041034724/1,41034724, 3000.00,The East Malling Centre,01168000,,Charitable / Voluntary Organis,Grants & Payments to Vol Orgn,D37PACV1947005,
http://statistics.data.gov.uk/id/local-authority/29UP,Tonbridge & Malling Borough Council,9/15/2022,0041034725/1,41034725, 2000.00,Snodland Food Assist,01830700,,Charitable / Voluntary Organis,Grants & Payments to Vol Orgn,D37PACV1947005,
http://statistics.data.gov.uk/id/local-authority/29UP,Tonbridge & Malling Borough Council,9/16/2022,0041034726/1,41034726, 15.20,HSBC Bank Plc,01740800,,Bank Charges,Banking Arrangements,D43QK000044222,
http://statistics.data.gov.uk/id/local-authority/29UP,Tonbridge & Malling Borough Council,9/16/2022,0041034727/1,41034727, 30.33,Allpay Limited,01816500,,Giro / Swipe Card Charges,Local Revenue & NNDR Collect,D41QA000044083,
http://statistics.data.gov.uk/id/local-authority/29UP,Tonbridge & Malling Borough Council,9/16/2022,0041034729/1,41034729, 222.20,National Westminster Bank Plc,00069400,,Bank Charges,Banking Arrangements,D43QK000044222,
http://statistics.data.gov.uk/id/local-authority/29UP,Tonbridge & Malling Borough Council,9/21/2022,0011044802/1,11044802, 20.00,Absolute Creative Print,01801100,,Economic Development & Regen,Eco Dev & Reg Gen Bus Support,D52TD000047027,110069690
http://statistics.data.gov.uk/id/local-authority/29UP,Tonbridge & Malling Borough Council,9/21/2022,0011044802/2,11044802, 30.00,Absolute Creative Print,01801100,,Economic Development & Regen,Eco Dev & Reg Gen Bus Support,D52TD000047027,110069690
http://statistics.data.gov.uk/id/local-authority/29UP,Tonbridge & Malling Borough Council,9/21/2022,0011044893/1,11044893, 3314.30,Orlo (SocialSignIn),01519000,,Information & Publicity,Information & Publicity,D32MJ000044076,110069776
http://statistics.data.gov.uk/id/local-authority/29UP,Tonbridge & Malling Borough Council,9/21/2022,0011044894/1,11044894, 330.00,G C Industrial Heating Services,00578100,,BRREP Response - General,Gibson Building East,M15KGP50001997,110069773
http://statistics.data.gov.uk/id/local-authority/29UP,Tonbridge & Malling Borough Council,9/21/2022,0011044895/1,11044895, 60.00,Willow Pumps Ltd,00114100,,BRREP Servicing - Pumping Stn,Tonbridge Swimming Pool,M15HBP20001931,110069721
http://statistics.data.gov.uk/id/local-authority/29UP,Tonbridge & Malling Borough Council,9/21/2022,0011044895/2,11044895, 110.00,Willow Pumps Ltd,00114100,,BRREP Servicing - Pumping Stn,Ton Sportsgrnd Bldgs / Toilets,M15HCP20001931,110069721
http://statistics.data.gov.uk/id/local-authority/29UP,Tonbridge & Malling Borough Council,9/21/2022,0011044895/3,11044895, 110.00,Willow Pumps Ltd,00114100,,BRREP Servicing - Pumping Stn,Vale Rise Depot,M15LCP20001931,110069721
http://statistics.data.gov.uk/id/local-authority/29UP,Tonbridge & Malling Borough Council,9/21/2022,0011044896/1,11044896, 288.00,Chillmech Limited,00978700,,BRREP Servicing-Air Condition,Leis Man Poult Wood Golf Centr,M15HEP20001935,110069750
http://statistics.data.gov.uk/id/local-authority/29UP,Tonbridge & Malling Borough Council,9/21/2022,0011044897/1,11044897, 1217.80,Sellick Partnership Group Limited,01336800,,Temporary Staff,Legal Sals&Overheads,D01ARDR0011300,
http://statistics.data.gov.uk/id/local-authority/29UP,Tonbridge & Malling Borough Council,9/21/2022,0011044898/1,11044898, 20.47,Oasis Group  - Box-It South East,00966800,931579211,Purchases,Electoral Registration,D31MF000040101,
http://statistics.data.gov.uk/id/local-authority/29UP,Tonbridge & Malling Borough Council,9/21/2022,0011044899/1,11044899, 526.98,KCS,00054200,,Gas,Buildings,D21FEDD6021003,
http://statistics.data.gov.uk/id/local-authority/29UP,Tonbridge & Malling Borough Council,9/21/2022,0011044900/1,11044900, 553.04,KCS,00054200,,Gas,Buildings,D21FEDD1021003,
http://statistics.data.gov.uk/id/local-authority/29UP,Tonbridge & Malling Borough Council,9/21/2022,0011044901/3,11044901, 155.88,TwoFold Limited,00518000,,Purchases,Printing,D22GA000040101,
http://statistics.data.gov.uk/id/local-authority/29UP,Tonbridge & Malling Borough Council,9/21/2022,0011044902/3,11044902, 377.68,Canon (UK) Limited,00298700,,Purchases - Paper,Printing,D22GA000040102,
http://statistics.data.gov.uk/id/local-authority/29UP,Tonbridge & Malling Borough Council,9/21/2022,0011044903/1,11044903, 3000.00,The Men'Mind Project,01864400,,Partnership Initiatives,Community Development,D30MB000048144,
http://statistics.data.gov.uk/id/local-authority/29UP,Tonbridge & Malling Borough Council,9/21/2022,0011044904/3,11044904, 76.20,Archant Community Media Ltd,00831700,,Marketing,Tonbridge Castle Gatehouse,B40TG000044215,
http://statistics.data.gov.uk/id/local-authority/29UP,Tonbridge & Malling Borough Council,9/21/2022,0011044905/3,11044905, 1217.80,Sellick Partnership Group Limited,01336800,,Temporary Staff,Legal Sals&Overheads,D01ARDR0011300,
http://statistics.data.gov.uk/id/local-authority/29UP,Tonbridge & Malling Borough Council,9/21/2022,0011044906/3,11044906, 306.66,Atlas Facilities Managment Limited ,01075900,,Miscellaneous Services,Cleaning & Security,D21FDDD1044015,
http://statistics.data.gov.uk/id/local-authority/29UP,Tonbridge & Malling Borough Council,9/21/2022,0011044907/3,11044907, 306.66,Atlas Facilities Managment Limited ,01075900,,Miscellaneous Services,Cleaning & Security,D21FDDD5044015,
http://statistics.data.gov.uk/id/local-authority/29UP,Tonbridge & Malling Borough Council,9/21/2022,0011044908/3,11044908, 306.66,Atlas Facilities Managment Limited ,01075900,,Miscellaneous Services,Cleaning & Security,D21FDDD6044015,
http://statistics.data.gov.uk/id/local-authority/29UP,Tonbridge & Malling Borough Council,9/21/2022,0021038163/1,21038163, 685.66,Atlas Facilities Managment Limited ,01075900,,Gates / Security,Patrolling,B22LF000044017,210056716
http://statistics.data.gov.uk/id/local-authority/29UP,Tonbridge & Malling Borough Council,9/21/2022,0021038164/1,21038164, 1385.40,City Electrical Factors Ltd,01225800,,Initial Furniture & Equipment,Capital Renewals Leisure,P05KGBC0209906,210056828
http://statistics.data.gov.uk/id/local-authority/29UP,Tonbridge & Malling Borough Council,9/21/2022,0021038165/1,21038165, 752.08,Rock UK,01212500,,Partnership Fees,Youth Partnerships,B33PG000044048,210056967
http://statistics.data.gov.uk/id/local-authority/29UP,Tonbridge & Malling Borough Council,9/21/2022,0021038166/1,21038166, 3166.66,Cater Connect,01863200,,Initial Furniture & Equipment,Capital Renewals Leisure,P05KGBC0309906,210056970
http://statistics.data.gov.uk/id/local-authority/29UP,Tonbridge & Malling Borough Council,9/21/2022,0021038166/2,21038166, 324.99,Cater Connect,01863200,,Initial Furniture & Equipment,Capital Renewals Leisure,P05KGBC0309906,210056970
http://statistics.data.gov.uk/id/local-authority/29UP,Tonbridge & Malling Borough Council,9/21/2022,0021038167/1,21038167, 475.00,Range Solutions,01860400,,Initial Furniture & Equipment,Capital Renewals Leisure,P05KGBC0309906,210056938
http://statistics.data.gov.uk/id/local-authority/29UP,Tonbridge & Malling Borough Council,9/21/2022,0021038167/2,21038167, 34.95,Range Solutions,01860400,,Initial Furniture & Equipment,Capital Renewals Leisure,P05KGBC0309906,210056938
http://statistics.data.gov.uk/id/local-authority/29UP,Tonbridge & Malling Borough Council,9/21/2022,0022026991/1,22026991, 350.00,MC Technicians,01861300,,Other Expenses,Housing Assistance,P03AD000009908,220003262
http://statistics.data.gov.uk/id/local-authority/29UP,Tonbridge & Malling Borough Council,9/21/2022,0022027046/3,22027046, 245.00,Countrystyle Group,00835900,781981681,Collection of Card,Dry Recycling,H34SR000054008,
http://statistics.data.gov.uk/id/local-authority/29UP,Tonbridge & Malling Borough Council,9/21/2022,0022027047/1,22027047, 6535.28,All Home Services Ltd,01802400,,Other Expenses,Disabled Facilities Grant Mand,P03AC000009908,
http://statistics.data.gov.uk/id/local-authority/29UP,Tonbridge & Malling Borough Council,9/21/2022,0022027048/1,22027048, 941.08,Town & Country Housing Group,01385400,,Other Expenses,Disabled Facilities Grant Mand,P03AC000009908,
http://statistics.data.gov.uk/id/local-authority/29UP,Tonbridge & Malling Borough Council,9/21/2022,0022027049/3,22027049, 1677.30,Lucy and Martin Recycling LTD,01694200,,Bring Sites Mixed Recycling,Dry Recycling,H34SR000054026,
http://statistics.data.gov.uk/id/local-authority/29UP,Tonbridge & Malling Borough Council,9/21/2022,0022027050/3,22027050, 4.16,REDACTED PERSONAL DATA,01055600,,Food Sampling,Food & Safety - Food Safety,H35SX000054011,
http://statistics.data.gov.uk/id/local-authority/29UP,Tonbridge & Malling Borough Council,9/21/2022,0022027051/1,22027051, 6.00,KelticLimited,01000400,,Purchases,Street Scene,H23SD000040101,220003241
http://statistics.data.gov.uk/id/local-authority/29UP,Tonbridge & Malling Borough Council,9/21/2022,0022027051/2,22027051, 9.95,KelticLimited,01000400,,Purchases,Street Scene,H23SD000040101,220003241
http://statistics.data.gov.uk/id/local-authority/29UP,Tonbridge & Malling Borough Council,9/21/2022,0022027051/3,22027051, 85.90,KelticLimited,01000400,,Purchases,Street Scene,H23SD000040101,220003241
http://statistics.data.gov.uk/id/local-authority/29UP,Tonbridge & Malling Borough Council,9/21/2022,0022027051/4,22027051, 7.90,KelticLimited,01000400,,Purchases,Street Scene,H23SD000040101,220003241
http://statistics.data.gov.uk/id/local-authority/29UP,Tonbridge & Malling Borough Council,9/21/2022,0022027051/5,22027051, 33.90,KelticLimited,01000400,,Purchases,Street Scene,H23SD000040101,220003241
http://statistics.data.gov.uk/id/local-authority/29UP,Tonbridge & Malling Borough Council,9/21/2022,0031018901/1,31018901, 164.00,Flowbird Smart City UK Limited,00898700,,Premises Repairs & Maintenance,Parking Off-Street,E10HA000020601,310042884
http://statistics.data.gov.uk/id/local-authority/29UP,Tonbridge & Malling Borough Council,9/21/2022,0031018901/2,31018901, 132.00,Flowbird Smart City UK Limited,00898700,,Premises Repairs & Maintenance,Parking Off-Street,E10HA000020601,310042884
http://statistics.data.gov.uk/id/local-authority/29UP,Tonbridge & Malling Borough Council,9/21/2022,0031018902/3,31018902, 104.13,REDACTED PERSONAL DATA,01344100,,Purchases,Security Services Management,E09GA000040101,
http://statistics.data.gov.uk/id/local-authority/29UP,Tonbridge & Malling Borough Council,9/21/2022,0032009777/3,32009777, 688.00,Carrington West Limited,01844500,,Temporary Staff,Planning Sals&Overheads,D01AJDJ0111300,
http://statistics.data.gov.uk/id/local-authority/29UP,Tonbridge & Malling Borough Council,9/21/2022,0032009778/3,32009778, 1343.75,Carrington West Limited,01844500,,Temporary Staff,Planning Sals&Overheads,D01AJDJ0111300,
http://statistics.data.gov.uk/id/local-authority/29UP,Tonbridge & Malling Borough Council,9/21/2022,0032009779/1,32009779, 2065.00,G2 Recruitment Solutions,01786000,,Temporary Staff,Env Hlth & Hsg Sals&Overheads,D01AVDV0711300,
http://statistics.data.gov.uk/id/local-authority/29UP,Tonbridge & Malling Borough Council,9/21/2022,0032009780/1,32009780, 3188.61,G2 Recruitment Solutions,01786000,,Temporary Staff,Planning Sals&Overheads,D01AJDJ0111300,
http://statistics.data.gov.uk/id/local-authority/29UP,Tonbridge & Malling Borough Council,9/21/2022,0032009781/1,32009781, 804.75,G2 Recruitment Solutions,01786000,,Temporary Staff,Planning Sals&Overheads,D01AJDJ0111300,
http://statistics.data.gov.uk/id/local-authority/29UP,Tonbridge & Malling Borough Council,9/21/2022,0032009782/1,32009782, 1147.00,G2 Recruitment Solutions,01786000,,Temporary Staff,Planning Sals&Overheads,D01AJDJ0111300,
http://statistics.data.gov.uk/id/local-authority/29UP,Tonbridge & Malling Borough Council,9/21/2022,0032009783/1,32009783, 753.00,JBA Consulting,01599000,665300941,Development of Local Plan,Development of Local Plan,A01AE000044023,320003369
http://statistics.data.gov.uk/id/local-authority/29UP,Tonbridge & Malling Borough Council,9/21/2022,0032009785/1,32009785, 1645.00,The Oyster Partnership,01196400,,Temporary Staff,Planning Sals&Overheads,D01AJDJ0111300,
http://statistics.data.gov.uk/id/local-authority/29UP,Tonbridge & Malling Borough Council,9/21/2022,0032009786/1,32009786, 1652.32,The Oyster Partnership,01196400,,Temporary Staff,Planning Sals&Overheads,D01AJDJ0111300,
http://statistics.data.gov.uk/id/local-authority/29UP,Tonbridge & Malling Borough Council,9/21/2022,0032009787/1,32009787, 1892.00,The Oyster Partnership,01196400,,Temporary Staff,Planning Sals&Overheads,D01AJDJ0111300,
http://statistics.data.gov.uk/id/local-authority/29UP,Tonbridge & Malling Borough Council,9/21/2022,0032009788/1,32009788, 1392.27,The Oyster Partnership,01196400,,Temporary Staff,Planning Sals&Overheads,D01AJDJ0111300,
http://statistics.data.gov.uk/id/local-authority/29UP,Tonbridge & Malling Borough Council,9/21/2022,0041034752/1,41034752, 2406.00,H.M. Revenue & Customs,00048400,,Levy Payment,Apprenticeship Scheme,D10DE000013700,
http://statistics.data.gov.uk/id/local-authority/29UP,Tonbridge & Malling Borough Council,9/22/2022,0041034757/1,41034757, 68.00,National Westminster Bank Plc,00069400,,Direct Debit / Bank Charges,Local Revenue & NNDR Collect,D41QA000044079,
http://statistics.data.gov.uk/id/local-authority/29UP,Tonbridge & Malling Borough Council,9/22/2022,0041034758/1,41034758, 200.00,National Westminster Bank Plc,00069400,,Direct Debit / Bank Charges,Local Revenue & NNDR Collect,D41QA000044079,
http://statistics.data.gov.uk/id/local-authority/29UP,Tonbridge & Malling Borough Council,9/26/2022,0041034761/1,41034761, 1050.00,REDACTED PERSONAL DATA,01865000,,Charitable / Voluntary Organis,Grants & Payments to Vol Orgn,D37PACV1947005,
http://statistics.data.gov.uk/id/local-authority/29UP,Tonbridge & Malling Borough Council,9/27/2022,0041034767/1,41034767, 15000.00,PPE Supplies Direct,01863900,,Charitable / Voluntary Organis,Grants & Payments to Vol Orgn,D37PACV1947005,
http://statistics.data.gov.uk/id/local-authority/29UP,Tonbridge & Malling Borough Council,9/27/2022,0041034768/1,41034768, 15.00,WorldPay ,01568000,,Credit Card Commission,Banking Arrangements,D43QK000044082,
http://statistics.data.gov.uk/id/local-authority/29UP,Tonbridge & Malling Borough Council,9/27/2022,0041034769/1,41034769, 149.87,WorldPay ,01568000,,Credit Card Commission,Banking Arrangements,D43QK000044082,
http://statistics.data.gov.uk/id/local-authority/29UP,Tonbridge & Malling Borough Council,9/27/2022,0041034770/1,41034770, 719.40,WorldPay ,01568000,,Credit Card Commission,Banking Arrangements,D43QK000044082,
http://statistics.data.gov.uk/id/local-authority/29UP,Tonbridge & Malling Borough Council,9/27/2022,0041034771/1,41034771, 2283.78,WorldPay ,01568000,,Credit Card Commission,Banking Arrangements,D43QK000044082,
http://statistics.data.gov.uk/id/local-authority/29UP,Tonbridge & Malling Borough Council,9/27/2022,0041034771/2,41034771, 206.51,WorldPay ,01568000,,Credit Card Commission,Banking Arrangements,D43QK000044082,
http://statistics.data.gov.uk/id/local-authority/29UP,Tonbridge & Malling Borough Council,9/28/2022,0011044909/1,11044909, 1204.70,Gilbert & Stamper Ltd,00039000,209804170,BRREP Pool hall lighting mntce,Larkfield Leisure Centre,M15HDP20001913,110069696
http://statistics.data.gov.uk/id/local-authority/29UP,Tonbridge & Malling Borough Council,9/28/2022,0011044910/1,11044910, 285.24,Broadwater Technologies,01534500,,BRREP Servicing - pool plant,Larkfield Leisure Centre,M15HDP20001910,110069778
http://statistics.data.gov.uk/id/local-authority/29UP,Tonbridge & Malling Borough Council,9/28/2022,0011044911/1,11044911, 299.90,KCS,00054200,,Cleaning & Domestic Supplies,Cleaning & Security,D21FD000026001,110069777
http://statistics.data.gov.uk/id/local-authority/29UP,Tonbridge & Malling Borough Council,9/28/2022,0011044911/2,11044911, 74.97,KCS,00054200,,Cleaning & Domestic Supplies,Cleaning & Security,D21FD000026001,110069777
http://statistics.data.gov.uk/id/local-authority/29UP,Tonbridge & Malling Borough Council,9/28/2022,0011044911/3,11044911, 34.20,KCS,00054200,,Cleaning & Domestic Supplies,Cleaning & Security,D21FD000026001,110069777
http://statistics.data.gov.uk/id/local-authority/29UP,Tonbridge & Malling Borough Council,9/28/2022,0011044912/1,11044912, 510.00,G C Industrial Heating Services,00578100,,BRREP Servicing-water chillers,Gibson Building West,M15KBP20001933,110069691
http://statistics.data.gov.uk/id/local-authority/29UP,Tonbridge & Malling Borough Council,9/28/2022,0011044913/1,11044913, 610.00,G C Industrial Heating Services,00578100,,BRREP Servicing-water chillers,Gibson Building West,M15KBP20001933,110069694
http://statistics.data.gov.uk/id/local-authority/29UP,Tonbridge & Malling Borough Council,9/28/2022,0011044914/1,11044914, 200.00,G C Industrial Heating Services,00578100,,BRREP Servicing-water chillers,Tonbridge Castle / CAB,M15KFP20001933,110069693
http://statistics.data.gov.uk/id/local-authority/29UP,Tonbridge & Malling Borough Council,9/28/2022,0011044915/1,11044915, 300.00,G C Industrial Heating Services,00578100,,BRREP Servicing-water chillers,Tonbridge Castle / CAB,M15KFP20001933,110069695
http://statistics.data.gov.uk/id/local-authority/29UP,Tonbridge & Malling Borough Council,9/28/2022,0011044916/1,11044916, 760.00,G C Industrial Heating Services,00578100,,BRREP Servicing-water chillers,Gibson Building East,M15KGP20001933,110069701
http://statistics.data.gov.uk/id/local-authority/29UP,Tonbridge & Malling Borough Council,9/28/2022,0011044917/1,11044917, 300.00,G C Industrial Heating Services,00578100,,BRREP Servicing-water chillers,Gibson Building East,M15KGP20001933,110069692
http://statistics.data.gov.uk/id/local-authority/29UP,Tonbridge & Malling Borough Council,9/28/2022,0011044918/1,11044918, 7424.58,Broadwater Technologies,01534500,,BRREP Servicing - pool plant,Larkfield Leisure Centre,M15HDP20001910,110069588
http://statistics.data.gov.uk/id/local-authority/29UP,Tonbridge & Malling Borough Council,9/28/2022,0011044919/1,11044919, 2990.00,Ryan Leisure Activities Ltd,01133600,,BRREP Servicing - Squash Court,Leis Man Poult Wood Golf Centr,M15HEP20001958,110069623
http://statistics.data.gov.uk/id/local-authority/29UP,Tonbridge & Malling Borough Council,9/28/2022,0011044920/1,11044920, 920.00,G C Industrial Heating Services,00578100,,BRREP Servicing - Heating Syst,Larkfield Leisure Centre,M15HDP20001934,110069796
http://statistics.data.gov.uk/id/local-authority/29UP,Tonbridge & Malling Borough Council,9/28/2022,0011044921/1,11044921, 440.00,G C Industrial Heating Services,00578100,,BRREP Servicing - boilers,Larkfield Leisure Centre,M15HDP20001929,110069793
http://statistics.data.gov.uk/id/local-authority/29UP,Tonbridge & Malling Borough Council,9/28/2022,0011044922/1,11044922, 225.00,Lemon Drainage Services LTD,01761600,,BRREP Servicing - Pumping Stn,Pleasure Grounds & Open Spaces,M15HHP20001931,110069460
http://statistics.data.gov.uk/id/local-authority/29UP,Tonbridge & Malling Borough Council,9/28/2022,0011044923/1,11044923, 1366.67,Intercom repair Ltd,01861200,140598900,Repairs & Mtce to Buildings,Homelessness,C01AATNHS20101,110069725
http://statistics.data.gov.uk/id/local-authority/29UP,Tonbridge & Malling Borough Council,9/28/2022,0011044924/3,11044924, 3050.60,KCS,00054200,,Electricity,Buildings,D21FEDD6021002,
http://statistics.data.gov.uk/id/local-authority/29UP,Tonbridge & Malling Borough Council,9/28/2022,0011044925/3,11044925, 1606.84,KCS,00054200,,Electricity,Buildings,D21FEDD5021002,
http://statistics.data.gov.uk/id/local-authority/29UP,Tonbridge & Malling Borough Council,9/28/2022,0011044926/3,11044926, 4674.00,KCS,00054200,,Electricity,Buildings,D21FEDD1021002,
http://statistics.data.gov.uk/id/local-authority/29UP,Tonbridge & Malling Borough Council,9/28/2022,0011044927/3,11044927, 1119.69,Royal Mail,00086200,,Purchases,Mailsort Stock Account,K37BR000001002,
http://statistics.data.gov.uk/id/local-authority/29UP,Tonbridge & Malling Borough Council,9/28/2022,0011044927/4,11044927, 1.75,Royal Mail,00086200,,Purchases,Mailsort Stock Account,K37BR000001002,
http://statistics.data.gov.uk/id/local-authority/29UP,Tonbridge & Malling Borough Council,9/28/2022,0011044927/5,11044927, 3.69,Royal Mail,00086200,,Purchases,Mailsort Stock Account,K37BR000001002,
http://statistics.data.gov.uk/id/local-authority/29UP,Tonbridge & Malling Borough Council,9/28/2022,0011044929/3,11044929, 320.00,Stuart Thomas Photography,00416800,,Other Expenses,Mayoral & Other Member Support,D29LX000048010,
http://statistics.data.gov.uk/id/local-authority/29UP,Tonbridge & Malling Borough Council,9/28/2022,0011044930/3,11044930, 4.20,Royal Mail,00086200,,Purchases,Mailsort Stock Account,K37BR000001002,
http://statistics.data.gov.uk/id/local-authority/29UP,Tonbridge & Malling Borough Council,9/28/2022,0011044930/4,11044930, 2.24,Royal Mail,00086200,,Purchases,Mailsort Stock Account,K37BR000001002,
http://statistics.data.gov.uk/id/local-authority/29UP,Tonbridge & Malling Borough Council,9/28/2022,0011044930/5,11044930, 1343.83,Royal Mail,00086200,,Purchases,Mailsort Stock Account,K37BR000001002,
http://statistics.data.gov.uk/id/local-authority/29UP,Tonbridge & Malling Borough Council,9/28/2022,0011044931/3,11044931, 152.68,Chubb Fire & Security Ltd,00115400,174605362,BRREP Servicing-IntruderAlarm,Angel Centre,M15HAP20001939,
http://statistics.data.gov.uk/id/local-authority/29UP,Tonbridge & Malling Borough Council,9/28/2022,0011044933/1,11044933, 362.00,Eryl Davies Veterinary Surgeon,01657600,,Professional Fees,Licences - Fee Paying,H27SH000044001,
http://statistics.data.gov.uk/id/local-authority/29UP,Tonbridge & Malling Borough Council,9/28/2022,0011044934/1,11044934, 102.74,Scottish Water Business Stream Ltd,01641100,,Estate Management Charge,Land Review,D40PS000020400,
http://statistics.data.gov.uk/id/local-authority/29UP,Tonbridge & Malling Borough Council,9/28/2022,0011044935/3,11044935, 920.16,Venn Group Ltd,00914300,,Temporary Staff,Legal Sals&Overheads,D01ARDR0011300,
http://statistics.data.gov.uk/id/local-authority/29UP,Tonbridge & Malling Borough Council,9/28/2022,0012008476/1,12008476, 609.00,ESRI (UK) Ltd,00746300,,Software Hire & Support,Information Technology,D27KD000044059,410032254
http://statistics.data.gov.uk/id/local-authority/29UP,Tonbridge & Malling Borough Council,9/28/2022,0012008476/10,12008476, 959.00,ESRI (UK) Ltd,00746300,,Software Hire & Support,Information Technology,D27KD000044059,410032254
http://statistics.data.gov.uk/id/local-authority/29UP,Tonbridge & Malling Borough Council,9/28/2022,0012008476/2,12008476, 1746.00,ESRI (UK) Ltd,00746300,,Software Hire & Support,Information Technology,D27KD000044059,410032254
http://statistics.data.gov.uk/id/local-authority/29UP,Tonbridge & Malling Borough Council,9/28/2022,0012008476/3,12008476, 959.00,ESRI (UK) Ltd,00746300,,Software Hire & Support,Information Technology,D27KD000044059,410032254
http://statistics.data.gov.uk/id/local-authority/29UP,Tonbridge & Malling Borough Council,9/28/2022,0012008476/4,12008476, 2157.00,ESRI (UK) Ltd,00746300,,Software Hire & Support,Information Technology,D27KD000044059,410032254
http://statistics.data.gov.uk/id/local-authority/29UP,Tonbridge & Malling Borough Council,9/28/2022,0012008476/5,12008476, 618.00,ESRI (UK) Ltd,00746300,,Software Hire & Support,Information Technology,D27KD000044059,410032254
http://statistics.data.gov.uk/id/local-authority/29UP,Tonbridge & Malling Borough Council,9/28/2022,0012008476/6,12008476, 2580.00,ESRI (UK) Ltd,00746300,,Software Hire & Support,Information Technology,D27KD000044059,410032254
http://statistics.data.gov.uk/id/local-authority/29UP,Tonbridge & Malling Borough Council,9/28/2022,0012008476/7,12008476, 2073.00,ESRI (UK) Ltd,00746300,,Software Hire & Support,Information Technology,D27KD000044059,410032254
http://statistics.data.gov.uk/id/local-authority/29UP,Tonbridge & Malling Borough Council,9/28/2022,0012008476/8,12008476, 9298.00,ESRI (UK) Ltd,00746300,,Software Hire & Support,Information Technology,D27KD000044059,410032254
http://statistics.data.gov.uk/id/local-authority/29UP,Tonbridge & Malling Borough Council,9/28/2022,0012008476/9,12008476, 2499.00,ESRI (UK) Ltd,00746300,,Software Hire & Support,Information Technology,D27KD000044059,410032254
http://statistics.data.gov.uk/id/local-authority/29UP,Tonbridge & Malling Borough Council,9/28/2022,0012008477/1,12008477, 3438.00,ESRI (UK) Ltd,00746300,,Software Hire & Support,Information Technology,D27KD000044059,410032255
http://statistics.data.gov.uk/id/local-authority/29UP,Tonbridge & Malling Borough Council,9/28/2022,0012008478/3,12008478, 7.15,Daisy Communications,01068100,,Telephones - Rentals,General Admin Telephones,D24GT000045005,
http://statistics.data.gov.uk/id/local-authority/29UP,Tonbridge & Malling Borough Council,9/28/2022,0012008478/4,12008478, 285.76,Daisy Communications,01068100,,Telephones - Call Costs,General Admin Telephones,D24GT000045006,
http://statistics.data.gov.uk/id/local-authority/29UP,Tonbridge & Malling Borough Council,9/28/2022,0012008478/5,12008478, 95.92,Daisy Communications,01068100,,Leased Lines & Modems,Information Technology,D27KD000045011,
http://statistics.data.gov.uk/id/local-authority/29UP,Tonbridge & Malling Borough Council,9/28/2022,0012008478/6,12008478, 74.46,Daisy Communications,01068100,,Maintenance - General,Security Services Management,E09GA000040135,
http://statistics.data.gov.uk/id/local-authority/29UP,Tonbridge & Malling Borough Council,9/28/2022,0012008479/10,12008479, 9.10,O2 UK Ltd,01268000,,Mobile Telephones,Admin & Prop Sals&Overheads,D01AADA1245013,
http://statistics.data.gov.uk/id/local-authority/29UP,Tonbridge & Malling Borough Council,9/28/2022,0012008479/11,12008479, 3.00,O2 UK Ltd,01268000,,Mobile Telephones,Chief Exec Sals&Overheads,D01ACDC0045013,
http://statistics.data.gov.uk/id/local-authority/29UP,Tonbridge & Malling Borough Council,9/28/2022,0012008479/12,12008479, 3.00,O2 UK Ltd,01268000,,Mobile Telephones,Chief Exec Sals&Overheads,D01ACDC0145013,
http://statistics.data.gov.uk/id/local-authority/29UP,Tonbridge & Malling Borough Council,9/28/2022,0012008479/13,12008479, 3.00,O2 UK Ltd,01268000,,Mobile Telephones,Chief Exec Sals&Overheads,D01ACDC0245013,
http://statistics.data.gov.uk/id/local-authority/29UP,Tonbridge & Malling Borough Council,9/28/2022,0012008479/14,12008479, 3.00,O2 UK Ltd,01268000,,Mobile Telephones,Technical Sals&Overheads,D01AEDE0045013,
http://statistics.data.gov.uk/id/local-authority/29UP,Tonbridge & Malling Borough Council,9/28/2022,0012008479/15,12008479, 6.00,O2 UK Ltd,01268000,,Mobile Telephones,Technical Sals&Overheads,D01AEDE0145013,
http://statistics.data.gov.uk/id/local-authority/29UP,Tonbridge & Malling Borough Council,9/28/2022,0012008479/16,12008479, 9.50,O2 UK Ltd,01268000,,Mobile Telephones,Technical Sals&Overheads,D01AEDE0245013,
http://statistics.data.gov.uk/id/local-authority/29UP,Tonbridge & Malling Borough Council,9/28/2022,0012008479/17,12008479, 42.13,O2 UK Ltd,01268000,,Mobile Telephones,Technical Sals&Overheads,D01AEDE0445013,
http://statistics.data.gov.uk/id/local-authority/29UP,Tonbridge & Malling Borough Council,9/28/2022,0012008479/18,12008479, 3.00,O2 UK Ltd,01268000,,Mobile Telephones,Technical Sals&Overheads,D01AEDE0545013,
http://statistics.data.gov.uk/id/local-authority/29UP,Tonbridge & Malling Borough Council,9/28/2022,0012008479/19,12008479, 12.00,O2 UK Ltd,01268000,,Mobile Telephones,Finance Sals&Overheads,D01AFDF0045013,
http://statistics.data.gov.uk/id/local-authority/29UP,Tonbridge & Malling Borough Council,9/28/2022,0012008479/20,12008479, 6.00,O2 UK Ltd,01268000,,Mobile Telephones,Finance Sals&Overheads,D01AFDF0945013,
http://statistics.data.gov.uk/id/local-authority/29UP,Tonbridge & Malling Borough Council,9/28/2022,0012008479/21,12008479, 12.00,O2 UK Ltd,01268000,,Mobile Telephones,St Scene & Leis Sals&Overheads,D01AGDG0045013,
http://statistics.data.gov.uk/id/local-authority/29UP,Tonbridge & Malling Borough Council,9/28/2022,0012008479/22,12008479, 12.20,O2 UK Ltd,01268000,,Mobile Telephones,St Scene & Leis Sals&Overheads,D01AGDG0145013,
http://statistics.data.gov.uk/id/local-authority/29UP,Tonbridge & Malling Borough Council,9/28/2022,0012008479/23,12008479, 9.00,O2 UK Ltd,01268000,,Mobile Telephones,St Scene & Leis Sals&Overheads,D01AGDG0445013,
http://statistics.data.gov.uk/id/local-authority/29UP,Tonbridge & Malling Borough Council,9/28/2022,0012008479/24,12008479, 36.00,O2 UK Ltd,01268000,,Mobile Telephones,St Scene & Leis Sals&Overheads,D01AGDG2045013,
http://statistics.data.gov.uk/id/local-authority/29UP,Tonbridge & Malling Borough Council,9/28/2022,0012008479/25,12008479, 9.00,O2 UK Ltd,01268000,,Mobile Telephones,Planning Sals&Overheads,D01AJDJ0045013,
http://statistics.data.gov.uk/id/local-authority/29UP,Tonbridge & Malling Borough Council,9/28/2022,0012008479/26,12008479, 12.00,O2 UK Ltd,01268000,,Mobile Telephones,Planning Sals&Overheads,D01AJDJ0245013,
http://statistics.data.gov.uk/id/local-authority/29UP,Tonbridge & Malling Borough Council,9/28/2022,0012008479/27,12008479, 6.00,O2 UK Ltd,01268000,,Mobile Telephones,Legal Sals&Overheads,D01ARDR0045013,
http://statistics.data.gov.uk/id/local-authority/29UP,Tonbridge & Malling Borough Council,9/28/2022,0012008479/28,12008479, 12.00,O2 UK Ltd,01268000,,Mobile Telephones,Legal Sals&Overheads,D01ARDR0445013,
http://statistics.data.gov.uk/id/local-authority/29UP,Tonbridge & Malling Borough Council,9/28/2022,0012008479/29,12008479, 3.00,O2 UK Ltd,01268000,,Mobile Telephones,Legal Sals&Overheads,D01ARDR0745013,
http://statistics.data.gov.uk/id/local-authority/29UP,Tonbridge & Malling Borough Council,9/28/2022,0012008479/30,12008479, 3.00,O2 UK Ltd,01268000,,Mobile Telephones,Env Hlth & Hsg Sals&Overheads,D01AVDV0045013,
http://statistics.data.gov.uk/id/local-authority/29UP,Tonbridge & Malling Borough Council,9/28/2022,0012008479/31,12008479, 9.00,O2 UK Ltd,01268000,,Mobile Telephones,Env Hlth & Hsg Sals&Overheads,D01AVDV0145013,
http://statistics.data.gov.uk/id/local-authority/29UP,Tonbridge & Malling Borough Council,9/28/2022,0012008479/32,12008479, 6.00,O2 UK Ltd,01268000,,Mobile Telephones,Env Hlth & Hsg Sals&Overheads,D01AVDV0345013,
http://statistics.data.gov.uk/id/local-authority/29UP,Tonbridge & Malling Borough Council,9/28/2022,0012008479/33,12008479, 3.00,O2 UK Ltd,01268000,,Mobile Telephones,Env Hlth & Hsg Sals&Overheads,D01AVDV0745013,
http://statistics.data.gov.uk/id/local-authority/29UP,Tonbridge & Malling Borough Council,9/28/2022,0012008479/34,12008479, 6.00,O2 UK Ltd,01268000,,Mobile Telephones,Env Hlth & Hsg Sals&Overheads,D01AVDV0945013,
http://statistics.data.gov.uk/id/local-authority/29UP,Tonbridge & Malling Borough Council,9/28/2022,0012008479/35,12008479, 9.10,O2 UK Ltd,01268000,,Mobile Telephones,Customer Services,D23CS000045013,
http://statistics.data.gov.uk/id/local-authority/29UP,Tonbridge & Malling Borough Council,9/28/2022,0012008479/36,12008479, 3.00,O2 UK Ltd,01268000,,Mobile Telephones,Tonbridge Gateway,D23TG000045013,
http://statistics.data.gov.uk/id/local-authority/29UP,Tonbridge & Malling Borough Council,9/28/2022,0012008479/37,12008479, 627.00,O2 UK Ltd,01268000,,Leased Lines & Modems,Information Technology,D27KD000045011,
http://statistics.data.gov.uk/id/local-authority/29UP,Tonbridge & Malling Borough Council,9/28/2022,0012008479/38,12008479, 3.00,O2 UK Ltd,01268000,,Mobile Telephones,Mayoral & Other Member Support,D29LX000045013,
http://statistics.data.gov.uk/id/local-authority/29UP,Tonbridge & Malling Borough Council,9/28/2022,0012008479/39,12008479, 3.00,O2 UK Ltd,01268000,,Emergency Out of Hours Recharg,Refuse Collection,H20SA000045030,
http://statistics.data.gov.uk/id/local-authority/29UP,Tonbridge & Malling Borough Council,9/28/2022,0012008479/40,12008479, 3.00,O2 UK Ltd,01268000,,Emergency Out of Hours Recharg,Street Scene,H23SD000045030,
http://statistics.data.gov.uk/id/local-authority/29UP,Tonbridge & Malling Borough Council,9/28/2022,0012008479/7,12008479, 3.00,O2 UK Ltd,01268000,,Telephones - General,Open Spaces & Amenity Areas,B22LE000045010,
http://statistics.data.gov.uk/id/local-authority/29UP,Tonbridge & Malling Borough Council,9/28/2022,0012008479/8,12008479, 6.00,O2 UK Ltd,01268000,,Mobile Telephones,Admin & Prop Sals&Overheads,D01AADA0045013,
http://statistics.data.gov.uk/id/local-authority/29UP,Tonbridge & Malling Borough Council,9/28/2022,0012008479/9,12008479, 3.00,O2 UK Ltd,01268000,,Mobile Telephones,Admin & Prop Sals&Overheads,D01AADA1045013,
http://statistics.data.gov.uk/id/local-authority/29UP,Tonbridge & Malling Borough Council,9/28/2022,0012008480/1,12008480, 13800.00,Canon (UK) Limited,00298700,,Initial Furniture & Equipment,Capital Renewals IT,P06FBFB8009906,410032245
http://statistics.data.gov.uk/id/local-authority/29UP,Tonbridge & Malling Borough Council,9/28/2022,0012008481/1,12008481, 11.98,Amazon EU SARL,01738400,,Purchases,Information Technology,D27KD000040101,410032234
http://statistics.data.gov.uk/id/local-authority/29UP,Tonbridge & Malling Borough Council,9/28/2022,0012008481/2,12008481, 4.99,Amazon EU SARL,01738400,,Delivery Expenses,Information Technology,D27KD000044069,410032234
http://statistics.data.gov.uk/id/local-authority/29UP,Tonbridge & Malling Borough Council,9/28/2022,0012008482/3,12008482, 155.28,British Telecommunications Plc,00012800,,Telephones - Rentals,General Admin Telephones,D24GT000045005,
http://statistics.data.gov.uk/id/local-authority/29UP,Tonbridge & Malling Borough Council,9/28/2022,0012008483/1,12008483, 79.90,CCS Media Ltd,00018000,,Purchases,Information Technology,D27KD000040101,410032258
http://statistics.data.gov.uk/id/local-authority/29UP,Tonbridge & Malling Borough Council,9/28/2022,0012008483/2,12008483, 2.00,CCS Media Ltd,00018000,,Delivery Expenses,Information Technology,D27KD000044069,410032258
http://statistics.data.gov.uk/id/local-authority/29UP,Tonbridge & Malling Borough Council,9/28/2022,0012008484/1,12008484, 250.00,Idox Software Ltd,00962400,,Consultancy Fees,Information Technology,D27KD000044011,410032253
http://statistics.data.gov.uk/id/local-authority/29UP,Tonbridge & Malling Borough Council,9/28/2022,0012008484/2,12008484, 2501.00,Idox Software Ltd,00962400,,Software Hire & Support,Information Technology,D27KD000044059,410032253
http://statistics.data.gov.uk/id/local-authority/29UP,Tonbridge & Malling Borough Council,9/28/2022,0012008485/1,12008485, 857.98,NEC Software Solutions UK Ltd,01073900,202159745,Software Hire & Support,Information Technology,D27KD000044059,410032242
http://statistics.data.gov.uk/id/local-authority/29UP,Tonbridge & Malling Borough Council,9/28/2022,0012008485/2,12008485, 612.84,NEC Software Solutions UK Ltd,01073900,202159745,Software Hire & Support,Information Technology,D27KD000044059,410032242
http://statistics.data.gov.uk/id/local-authority/29UP,Tonbridge & Malling Borough Council,9/28/2022,0012008486/3,12008486, 17146.79,Phoenix Software Ltd,00077400,755349015,Software Hire & Support,Information Technology,D27KD000044059,
http://statistics.data.gov.uk/id/local-authority/29UP,Tonbridge & Malling Borough Council,9/28/2022,0021038168/1,21038168, 2227.50,Arnold Tarmac Ltd,01685100,,Maintenance of Grounds,Open Spaces & Amenity Areas,B22LE000020402,210056934
http://statistics.data.gov.uk/id/local-authority/29UP,Tonbridge & Malling Borough Council,9/28/2022,0021038169/1,21038169, 41.00,REDACTED PERSONAL DATA,01528400,,Twinning Committee Expenses,Twinning Committee,D29LJ000048009,
http://statistics.data.gov.uk/id/local-authority/29UP,Tonbridge & Malling Borough Council,9/28/2022,0021038170/1,21038170, 115.74,Landscape Services Ltd,00057600,,Maintenance of Grounds,Sports Grounds,B13ET000020402,210056965
http://statistics.data.gov.uk/id/local-authority/29UP,Tonbridge & Malling Borough Council,9/28/2022,0021038171/3,21038171, 271.07,KCC - L.A.S.E.R Commercial Services ,00184300,,Electricity,Cemetery,B26MP000021002,
http://statistics.data.gov.uk/id/local-authority/29UP,Tonbridge & Malling Borough Council,9/28/2022,0021038172/3,21038172, 118.51,KCC - L.A.S.E.R Commercial Services ,00184300,,Electricity,Cemetery,B26MP000021002,
http://statistics.data.gov.uk/id/local-authority/29UP,Tonbridge & Malling Borough Council,9/28/2022,0021038173/3,21038173, 339.64,KCC - L.A.S.E.R Commercial Services ,00184300,,Electricity,Tonbridge Castle Grounds,B22LB000021002,
http://statistics.data.gov.uk/id/local-authority/29UP,Tonbridge & Malling Borough Council,9/28/2022,0021038174/1,21038174, 25.00,Keep Britain Tidy,00519900,,Maintenance of Grounds,Sports Grounds,B13ET000020402,210056975
http://statistics.data.gov.uk/id/local-authority/29UP,Tonbridge & Malling Borough Council,9/28/2022,0021038175/1,21038175, 50.75,Lower Medway Internal Drainage Board,00059900,,Payments to Drainage Boards,Drainage Boards Levies,D44QT000024004,
http://statistics.data.gov.uk/id/local-authority/29UP,Tonbridge & Malling Borough Council,9/28/2022,0021038176/1,21038176, 1875.00,GI Carpets Ltd,00953500,,Initial Furniture & Equipment,Capital Renewals Leisure,P05KGBC0309906,210056937
http://statistics.data.gov.uk/id/local-authority/29UP,Tonbridge & Malling Borough Council,9/28/2022,0021038177/10,21038177, 4577.19,Landscape Services Ltd,00057600,,Grounds Maintenance Contract,Cemetery,B26MP000050103,
http://statistics.data.gov.uk/id/local-authority/29UP,Tonbridge & Malling Borough Council,9/28/2022,0021038177/11,21038177, 216.11,Landscape Services Ltd,00057600,,Grounds Maintenance Contract,Churchyards St Peter & St Paul,B28MX000050103,
http://statistics.data.gov.uk/id/local-authority/29UP,Tonbridge & Malling Borough Council,9/28/2022,0021038177/12,21038177, 157.16,Landscape Services Ltd,00057600,,Grounds Maintenance Contract,Churchyards St Stephens,B28MY000050103,
http://statistics.data.gov.uk/id/local-authority/29UP,Tonbridge & Malling Borough Council,9/28/2022,0021038177/13,21038177, 173.71,Landscape Services Ltd,00057600,,Grounds Maintenance Contract,Grounds,D21FF000050103,
http://statistics.data.gov.uk/id/local-authority/29UP,Tonbridge & Malling Borough Council,9/28/2022,0021038177/14,21038177, 329.46,Landscape Services Ltd,00057600,,Maintenance of Grounds,Parking Off-Street,E10HA000020402,
http://statistics.data.gov.uk/id/local-authority/29UP,Tonbridge & Malling Borough Council,9/28/2022,0021038177/15,21038177, 1033.20,Landscape Services Ltd,00057600,,Maintenance of Grounds,Parking Off-Street,E10HAE00120402,
http://statistics.data.gov.uk/id/local-authority/29UP,Tonbridge & Malling Borough Council,9/28/2022,0021038177/16,21038177, 98.11,Landscape Services Ltd,00057600,,Maintenance of Grounds,Parking Off-Street,E10HAE00220402,
http://statistics.data.gov.uk/id/local-authority/29UP,Tonbridge & Malling Borough Council,9/28/2022,0021038177/17,21038177, 88.97,Landscape Services Ltd,00057600,,Maintenance of Grounds,Parking Off-Street,E10HAE00320402,
http://statistics.data.gov.uk/id/local-authority/29UP,Tonbridge & Malling Borough Council,9/28/2022,0021038177/18,21038177, 22.19,Landscape Services Ltd,00057600,,Maintenance of Grounds,Parking Off-Street,E10HAE00420402,
http://statistics.data.gov.uk/id/local-authority/29UP,Tonbridge & Malling Borough Council,9/28/2022,0021038177/19,21038177, 0.57,Landscape Services Ltd,00057600,,Maintenance of Grounds,Parking Off-Street,E10HAE00520402,
http://statistics.data.gov.uk/id/local-authority/29UP,Tonbridge & Malling Borough Council,9/28/2022,0021038177/20,21038177, 62.11,Landscape Services Ltd,00057600,,Maintenance of Grounds,Parking Off-Street,E10HAE00620402,
http://statistics.data.gov.uk/id/local-authority/29UP,Tonbridge & Malling Borough Council,9/28/2022,0021038177/21,21038177, 145.01,Landscape Services Ltd,00057600,,Maintenance of Grounds,Parking Off-Street,E10HAE01020402,
http://statistics.data.gov.uk/id/local-authority/29UP,Tonbridge & Malling Borough Council,9/28/2022,0021038177/22,21038177, 3.21,Landscape Services Ltd,00057600,,Maintenance of Grounds,Parking Off-Street,E10HAE01220402,
http://statistics.data.gov.uk/id/local-authority/29UP,Tonbridge & Malling Borough Council,9/28/2022,0021038177/23,21038177, 7.09,Landscape Services Ltd,00057600,,Maintenance of Grounds,Parking Off-Street,E10HAE01320402,
http://statistics.data.gov.uk/id/local-authority/29UP,Tonbridge & Malling Borough Council,9/28/2022,0021038177/24,21038177, 29.50,Landscape Services Ltd,00057600,,Maintenance of Grounds,Parking Off-Street,E10HAE01520402,
http://statistics.data.gov.uk/id/local-authority/29UP,Tonbridge & Malling Borough Council,9/28/2022,0021038177/25,21038177, 57.64,Landscape Services Ltd,00057600,,Maintenance of Grounds,Parking Off-Street,E10HAE01620402,
http://statistics.data.gov.uk/id/local-authority/29UP,Tonbridge & Malling Borough Council,9/28/2022,0021038177/26,21038177, 23.42,Landscape Services Ltd,00057600,,Maintenance of Grounds,Parking Off-Street,E10HAE01720402,
http://statistics.data.gov.uk/id/local-authority/29UP,Tonbridge & Malling Borough Council,9/28/2022,0021038177/27,21038177, 14.39,Landscape Services Ltd,00057600,,Maintenance of Grounds,Parking Off-Street,E10HAE02120402,
http://statistics.data.gov.uk/id/local-authority/29UP,Tonbridge & Malling Borough Council,9/28/2022,0021038177/28,21038177, 22.91,Landscape Services Ltd,00057600,,Maintenance of Grounds,Parking Off-Street,E10HAE02320402,
http://statistics.data.gov.uk/id/local-authority/29UP,Tonbridge & Malling Borough Council,9/28/2022,0021038177/29,21038177, 87.83,Landscape Services Ltd,00057600,,Maintenance of Grounds,Parking Off-Street,E10HAE02820402,
http://statistics.data.gov.uk/id/local-authority/29UP,Tonbridge & Malling Borough Council,9/28/2022,0021038177/3,21038177, 21497.43,Landscape Services Ltd,00057600,,Grounds Maintenance Contract,Sports Grounds,B13ET000050103,
http://statistics.data.gov.uk/id/local-authority/29UP,Tonbridge & Malling Borough Council,9/28/2022,0021038177/30,21038177, 23.78,Landscape Services Ltd,00057600,,Maintenance of Grounds,Parking Off-Street,E10HAE04020402,
http://statistics.data.gov.uk/id/local-authority/29UP,Tonbridge & Malling Borough Council,9/28/2022,0021038177/31,21038177, 78.42,Landscape Services Ltd,00057600,,Maintenance of Grounds,Parking Off-Street,E10HAE04520402,
http://statistics.data.gov.uk/id/local-authority/29UP,Tonbridge & Malling Borough Council,9/28/2022,0021038177/4,21038177, 7461.13,Landscape Services Ltd,00057600,,Grounds Maintenance Contract,Tonbridge Castle Grounds,B22LB000050103,
http://statistics.data.gov.uk/id/local-authority/29UP,Tonbridge & Malling Borough Council,9/28/2022,0021038177/5,21038177, 56.77,Landscape Services Ltd,00057600,,Trade Refuse Charges,Haysden Country Park,B22LC000044008,
http://statistics.data.gov.uk/id/local-authority/29UP,Tonbridge & Malling Borough Council,9/28/2022,0021038177/6,21038177, 487.02,Landscape Services Ltd,00057600,,Litter Collection,Haysden Country Park,B22LC000044061,
http://statistics.data.gov.uk/id/local-authority/29UP,Tonbridge & Malling Borough Council,9/28/2022,0021038177/7,21038177, 1674.08,Landscape Services Ltd,00057600,,Grounds Maintenance Contract,Haysden Country Park,B22LC000050103,
http://statistics.data.gov.uk/id/local-authority/29UP,Tonbridge & Malling Borough Council,9/28/2022,0021038177/8,21038177, 583.97,Landscape Services Ltd,00057600,,Grounds Maintenance Contract,Haysden Country Park,B22LC000050103,
http://statistics.data.gov.uk/id/local-authority/29UP,Tonbridge & Malling Borough Council,9/28/2022,0021038177/9,21038177, 12393.51,Landscape Services Ltd,00057600,,Grounds Maintenance Contract,Open Spaces & Amenity Areas,B22LE000050103,
http://statistics.data.gov.uk/id/local-authority/29UP,Tonbridge & Malling Borough Council,9/28/2022,0021038178/1,21038178, 558.00,ASW Connect Ltd,01846900,,Partnership Fees,Youth Partnerships,B33PG000044048,210056980
http://statistics.data.gov.uk/id/local-authority/29UP,Tonbridge & Malling Borough Council,9/28/2022,0021038179/1,21038179, 480.67,Landscape Services Ltd,00057600,,Grounds Maintenance Contract,Cemetery,B26MP000050103,
http://statistics.data.gov.uk/id/local-authority/29UP,Tonbridge & Malling Borough Council,9/28/2022,0021038180/1,21038180, 57.87,Landscape Services Ltd,00057600,,Maintenance of Grounds,Open Spaces & Amenity Areas,B22LE000020402,210056976
http://statistics.data.gov.uk/id/local-authority/29UP,Tonbridge & Malling Borough Council,9/28/2022,0021038181/1,21038181, 200.00,SL TreeCare Ltd,01274100,,Health & Safety - Trees,Countryside/Woodland Mgt,B22LG000044045,210056858
http://statistics.data.gov.uk/id/local-authority/29UP,Tonbridge & Malling Borough Council,9/28/2022,0021038182/1,21038182, 906.94,Wybone Ltd,00815800,,Maintenance of Grounds,Haysden Country Park,B22LC000020402,210056901
http://statistics.data.gov.uk/id/local-authority/29UP,Tonbridge & Malling Borough Council,9/28/2022,0022027052/1,22027052, 222.72,Peabody South East LTD,01680900,,Other Expenses,Disabled Facilities Grant Mand,P03AC000009908,
http://statistics.data.gov.uk/id/local-authority/29UP,Tonbridge & Malling Borough Council,9/28/2022,0022027053/3,22027053, 97.85,E.ON - Next,01790900,,Electricity,Homelessness,C01AATNPR21002,
http://statistics.data.gov.uk/id/local-authority/29UP,Tonbridge & Malling Borough Council,9/28/2022,0022027054/1,22027054, 420.00,Town & Country Housing Group,01385400,,Countywide DFG Project,Private Sector Housing Renewal,C03BD000044031,
http://statistics.data.gov.uk/id/local-authority/29UP,Tonbridge & Malling Borough Council,9/28/2022,0022027055/3,22027055, 11031.93,Urbaser LTD,01718800,,Contract Payments,Refuse Collection,H20SA000054001,
http://statistics.data.gov.uk/id/local-authority/29UP,Tonbridge & Malling Borough Council,9/28/2022,0022027055/4,22027055, 12425.29,Urbaser LTD,01718800,,Contract Payments,Street Scene,H23SD000054001,
http://statistics.data.gov.uk/id/local-authority/29UP,Tonbridge & Malling Borough Council,9/28/2022,0022027055/5,22027055, 1640.00,Urbaser LTD,01718800,,Contract Payments,Dry Recycling,H34SR000054001,
http://statistics.data.gov.uk/id/local-authority/29UP,Tonbridge & Malling Borough Council,9/28/2022,0022027055/6,22027055, 310.23,Urbaser LTD,01718800,,Contract Payments,Food Recycling,H34SS000054001,
http://statistics.data.gov.uk/id/local-authority/29UP,Tonbridge & Malling Borough Council,9/28/2022,0022027055/7,22027055, 11803.88,Urbaser LTD,01718800,,Contract Payments,Garden Waste Recycling,H34ST000054001,
http://statistics.data.gov.uk/id/local-authority/29UP,Tonbridge & Malling Borough Council,9/28/2022,0022027056/1,22027056, 16302.00,Craemer UK LTD,01616400,,Initial Furniture & Equipment,Green Waste Bin Growth/Replace,P02BC000009906,220003265
http://statistics.data.gov.uk/id/local-authority/29UP,Tonbridge & Malling Borough Council,9/28/2022,0022027057/3,22027057, 75.00,Bulb Energy Ltd,01799000,214948301,Electricity,Homelessness,C01AA000021002,
http://statistics.data.gov.uk/id/local-authority/29UP,Tonbridge & Malling Borough Council,9/28/2022,0022027058/3,22027058, 490.00,Countrystyle Group,00835900,781981681,Collection of Card,Dry Recycling,H34SR000054008,
http://statistics.data.gov.uk/id/local-authority/29UP,Tonbridge & Malling Borough Council,9/28/2022,0022027059/1,22027059, 130.92,Maidstone Borough Council,01173700,,Council Tax,Homelessness,C01AA000023002,
http://statistics.data.gov.uk/id/local-authority/29UP,Tonbridge & Malling Borough Council,9/28/2022,0022027060/1,22027060, 4.50,SOCOTEC UK Limited,01284300,,Air Quality Monitoring,Environmental Protection,H32SN000054016,220003267
http://statistics.data.gov.uk/id/local-authority/29UP,Tonbridge & Malling Borough Council,9/28/2022,0022027061/1,22027061, 123.31,British Gas Services LTD,01260000,,Electricity,Homelessness,C01AA000021002,
http://statistics.data.gov.uk/id/local-authority/29UP,Tonbridge & Malling Borough Council,9/28/2022,0022027062/3,22027062, 1927.37,Vivid Resourcing,01773700,,Temporary Staff,Env Hlth & Hsg Sals&Overheads,D01AVDV0711300,
http://statistics.data.gov.uk/id/local-authority/29UP,Tonbridge & Malling Borough Council,9/28/2022,0022027063/3,22027063, 1239.50,Vivid Resourcing,01773700,,Temporary Staff,Env Hlth & Hsg Sals&Overheads,D01AVDV0711300,
http://statistics.data.gov.uk/id/local-authority/29UP,Tonbridge & Malling Borough Council,9/28/2022,0022027064/3,22027064, 1452.08,Vivid Resourcing,01773700,,Temporary Staff,Env Hlth & Hsg Sals&Overheads,D01AVDV0711300,
http://statistics.data.gov.uk/id/local-authority/29UP,Tonbridge & Malling Borough Council,9/28/2022,0022027065/3,22027065, 1315.99,Vivid Resourcing,01773700,,Temporary Staff,Env Hlth & Hsg Sals&Overheads,D01AVDV0711300,
http://statistics.data.gov.uk/id/local-authority/29UP,Tonbridge & Malling Borough Council,9/28/2022,0031018907/3,31018907, 1260.00,Sevenoaks District Council,00089300,,Out of Hours Service,Civil Contingencies,D33NA000045025,
http://statistics.data.gov.uk/id/local-authority/29UP,Tonbridge & Malling Borough Council,9/28/2022,0031018908/1,31018908, 137.50,Archway Highway Services Ltd,01398000,,Premises Repairs & Maintenance,Parking On-Street,E10HD000020601,310042885
http://statistics.data.gov.uk/id/local-authority/29UP,Tonbridge & Malling Borough Council,9/28/2022,0031018909/3,31018909, 2735.46,CDER Group,01773300,,Adjudication & Enforcement Ser,Parking Off-Street,E10HA000044230,
http://statistics.data.gov.uk/id/local-authority/29UP,Tonbridge & Malling Borough Council,9/28/2022,0031018910/1,31018910, 689.50,Archway Highway Services Ltd,01398000,,Premises Repairs & Maintenance,Parking On-Street,E10HD000020601,310042879
http://statistics.data.gov.uk/id/local-authority/29UP,Tonbridge & Malling Borough Council,9/28/2022,0031018910/2,31018910, 300.00,Archway Highway Services Ltd,01398000,,Premises Repairs & Maintenance,Parking On-Street,E10HD000020601,310042879
http://statistics.data.gov.uk/id/local-authority/29UP,Tonbridge & Malling Borough Council,9/28/2022,0031018911/3,31018911, 93.18,Shell U.K. Oil Products Limited,01673300,,"Petrol, Diesel & Oil",Patrolling,B22LF000030106,
http://statistics.data.gov.uk/id/local-authority/29UP,Tonbridge & Malling Borough Council,9/28/2022,0031018911/4,31018911, 68.92,Shell U.K. Oil Products Limited,01673300,,"Petrol, Diesel & Oil",Parking Off-Street,E10HA000030106,
http://statistics.data.gov.uk/id/local-authority/29UP,Tonbridge & Malling Borough Council,9/28/2022,0031018911/5,31018911, 68.92,Shell U.K. Oil Products Limited,01673300,,"Petrol, Diesel & Oil",Parking On-Street,E10HD000030106,
http://statistics.data.gov.uk/id/local-authority/29UP,Tonbridge & Malling Borough Council,9/28/2022,0031018912/1,31018912, 145.07,Smyth Composites,01774000,,Bridge Maintenance,Open Spaces & Amenity Areas,B22LE000020505,210056951
http://statistics.data.gov.uk/id/local-authority/29UP,Tonbridge & Malling Borough Council,9/28/2022,0031018912/2,31018912, 111.70,Smyth Composites,01774000,,Bridge Maintenance,Open Spaces & Amenity Areas,B22LE000020505,210056951
http://statistics.data.gov.uk/id/local-authority/29UP,Tonbridge & Malling Borough Council,9/28/2022,0031018912/3,31018912, 122.82,Smyth Composites,01774000,,Bridge Maintenance,Open Spaces & Amenity Areas,B22LE000020505,210056951
http://statistics.data.gov.uk/id/local-authority/29UP,Tonbridge & Malling Borough Council,9/28/2022,0031018912/4,31018912, 4343.20,Smyth Composites,01774000,,Bridge Maintenance,Open Spaces & Amenity Areas,B22LE000020505,210056951
http://statistics.data.gov.uk/id/local-authority/29UP,Tonbridge & Malling Borough Council,9/28/2022,0031018912/5,31018912, 135.00,Smyth Composites,01774000,,Bridge Maintenance,Open Spaces & Amenity Areas,B22LE000020505,210056951
http://statistics.data.gov.uk/id/local-authority/29UP,Tonbridge & Malling Borough Council,9/28/2022,0031018912/6,31018912, 136.00,Smyth Composites,01774000,,Bridge Maintenance,Open Spaces & Amenity Areas,B22LE000020505,210056951
http://statistics.data.gov.uk/id/local-authority/29UP,Tonbridge & Malling Borough Council,9/28/2022,0031018913/1,31018913, 664.56,DSSL Group Ltd,01839500,,CCTV Monitoring Station,Security Services Management,E09GA000051020,310042889
http://statistics.data.gov.uk/id/local-authority/29UP,Tonbridge & Malling Borough Council,9/28/2022,0031018915/1,31018915, 600.00,Forge Engineering,00137700,,Premises Repairs & Maintenance,Parking Off-Street,E10HAE00620601,310042872
http://statistics.data.gov.uk/id/local-authority/29UP,Tonbridge & Malling Borough Council,9/28/2022,0032009784/1,32009784, 23676.75,Land Use Consulting Ltd,01838700,,Development of Local Plan,Development of Local Plan,A01AE000044023,320003397
http://statistics.data.gov.uk/id/local-authority/29UP,Tonbridge & Malling Borough Council,9/28/2022,0032009791/3,32009791, 2590.00,G2 Recruitment Solutions,01786000,,Temporary Staff,Planning Sals&Overheads,D01AJDJ0111300,
http://statistics.data.gov.uk/id/local-authority/29UP,Tonbridge & Malling Borough Council,9/28/2022,0032009792/3,32009792, 3182.22,G2 Recruitment Solutions,01786000,,Temporary Staff,Planning Sals&Overheads,D01AJDJ0111300,
http://statistics.data.gov.uk/id/local-authority/29UP,Tonbridge & Malling Borough Council,9/28/2022,0032009793/3,32009793, 1609.50,G2 Recruitment Solutions,01786000,,Temporary Staff,Planning Sals&Overheads,D01AJDJ0111300,
http://statistics.data.gov.uk/id/local-authority/29UP,Tonbridge & Malling Borough Council,9/28/2022,0032009794/3,32009794, 1271.00,G2 Recruitment Solutions,01786000,,Temporary Staff,Planning Sals&Overheads,D01AJDJ0111300,
http://statistics.data.gov.uk/id/local-authority/29UP,Tonbridge & Malling Borough Council,9/28/2022,0032009795/1,32009795, 149.94,KM Media Group Ltd,00053900,,Advertising General,Development Management,A01ABZ99944216,320003445
http://statistics.data.gov.uk/id/local-authority/29UP,Tonbridge & Malling Borough Council,9/28/2022,0032009796/1,32009796, 214.20,KM Media Group Ltd,00053900,,Advertising General,Development Management,A01ABZ99944216,320003446
http://statistics.data.gov.uk/id/local-authority/29UP,Tonbridge & Malling Borough Council,9/28/2022,0032009797/3,32009797, 2197.25,The Oyster Partnership,01196400,,Temporary Staff,Planning Sals&Overheads,D01AJDJ0111300,
http://statistics.data.gov.uk/id/local-authority/29UP,Tonbridge & Malling Borough Council,9/28/2022,0032009798/3,32009798, 1667.50,The Oyster Partnership,01196400,,Temporary Staff,Planning Sals&Overheads,D01AJDJ0111300,
http://statistics.data.gov.uk/id/local-authority/29UP,Tonbridge & Malling Borough Council,9/28/2022,0032009799/3,32009799, 1892.00,The Oyster Partnership,01196400,,Temporary Staff,Planning Sals&Overheads,D01AJDJ0111300,
http://statistics.data.gov.uk/id/local-authority/29UP,Tonbridge & Malling Borough Council,9/28/2022,0032009800/3,32009800, 717.23,The Oyster Partnership,01196400,,Temporary Staff,Planning Sals&Overheads,D01AJDJ0111300,
http://statistics.data.gov.uk/id/local-authority/29UP,Tonbridge & Malling Borough Council,9/28/2022,0032009801/3,32009801, 7356.67,Arc4,01652100,,Professional Fees,Housing Strategy,C12FB000044001,
http://statistics.data.gov.uk/id/local-authority/29UP,Tonbridge & Malling Borough Council,9/28/2022,0032009802/1,32009802, 2440.08,CBA,01844700,,Development of Local Plan,Development of Local Plan,A01AE000044023,320003411
http://statistics.data.gov.uk/id/local-authority/29UP,Tonbridge & Malling Borough Council,9/28/2022,0041034731/3,41034731, 0.51,KCS,00054200,,Copy Charges,Multi Function Devices,D22GB000040125,
http://statistics.data.gov.uk/id/local-authority/29UP,Tonbridge & Malling Borough Council,9/28/2022,0041034732/1,41034732, 80.00,WorldPay Ltd,01402000,991280207,Credit Card Commission,Banking Arrangements,D43QK000044082,
http://statistics.data.gov.uk/id/local-authority/29UP,Tonbridge & Malling Borough Council,9/28/2022,0041034732/2,41034732, 57.52,WorldPay Ltd,01402000,991280207,Credit Card Commission,Banking Arrangements,D43QK000044082,
http://statistics.data.gov.uk/id/local-authority/29UP,Tonbridge & Malling Borough Council,9/28/2022,0041034732/3,41034732, 0.32,WorldPay Ltd,01402000,991280207,Credit Card Commission,Banking Arrangements,D43QK000044082,
http://statistics.data.gov.uk/id/local-authority/29UP,Tonbridge & Malling Borough Council,9/28/2022,0041034733/1,41034733, 80.00,WorldPay Ltd,01402000,991280207,Credit Card Commission,Banking Arrangements,D43QK000044082,
http://statistics.data.gov.uk/id/local-authority/29UP,Tonbridge & Malling Borough Council,9/28/2022,0041034733/2,41034733, 76.88,WorldPay Ltd,01402000,991280207,Credit Card Commission,Banking Arrangements,D43QK000044082,
http://statistics.data.gov.uk/id/local-authority/29UP,Tonbridge & Malling Borough Council,9/28/2022,0041034733/3,41034733, 0.56,WorldPay Ltd,01402000,991280207,Credit Card Commission,Banking Arrangements,D43QK000044082,
http://statistics.data.gov.uk/id/local-authority/29UP,Tonbridge & Malling Borough Council,9/28/2022,0041034734/1,41034734, 80.00,WorldPay Ltd,01402000,991280207,Credit Card Commission,Banking Arrangements,D43QK000044082,
http://statistics.data.gov.uk/id/local-authority/29UP,Tonbridge & Malling Borough Council,9/28/2022,0041034734/2,41034734, 156.48,WorldPay Ltd,01402000,991280207,Credit Card Commission,Banking Arrangements,D43QK000044082,
http://statistics.data.gov.uk/id/local-authority/29UP,Tonbridge & Malling Borough Council,9/28/2022,0041034736/3,41034736, 837.49,Maidstone Borough Council,01173700,,Bailiffs Commission,Local Revenue & NNDR Collect,D41QA000044075,
http://statistics.data.gov.uk/id/local-authority/29UP,Tonbridge & Malling Borough Council,9/28/2022,0041034737/3,41034737, 4575.00,Maidstone Borough Council,01173700,,Bailiffs Commission,Local Revenue & NNDR Collect,D41QA000044075,
http://statistics.data.gov.uk/id/local-authority/29UP,Tonbridge & Malling Borough Council,9/28/2022,0041034738/3,41034738, 278.30,Morgan Hunt UK Ltd,01086900,,Temporary Staff,Finance Sals&Overheads,D01AFDF1111300,
http://statistics.data.gov.uk/id/local-authority/29UP,Tonbridge & Malling Borough Council,9/28/2022,0041034739/3,41034739, 971.25,Morgan Hunt UK Ltd,01086900,,Temporary Staff,Finance Sals&Overheads,D01AFDF1111300,
http://statistics.data.gov.uk/id/local-authority/29UP,Tonbridge & Malling Borough Council,9/28/2022,0041034740/3,41034740, 2072.16,Rundle & Co Ltd,00087200,,Bailiffs Commission,Local Revenue & NNDR Collect,D41QA000044075,
http://statistics.data.gov.uk/id/local-authority/29UP,Tonbridge & Malling Borough Council,9/28/2022,0041034741/3,41034741, 57.67,Rundle & Co Ltd,00087200,,Bailiffs Commission,Local Revenue & NNDR Collect,D41QA000044075,
http://statistics.data.gov.uk/id/local-authority/29UP,Tonbridge & Malling Borough Council,9/28/2022,0041034742/1,41034742, 4.16,Amazon EU SARL,01738400,,Purchases,Finance Sals&Overheads,D01AF000040101,410032257
http://statistics.data.gov.uk/id/local-authority/29UP,Tonbridge & Malling Borough Council,9/28/2022,0041034742/2,41034742, 10.82,Amazon EU SARL,01738400,,Stationery,Finance Sals&Overheads,D01AF000043003,410032257
http://statistics.data.gov.uk/id/local-authority/29UP,Tonbridge & Malling Borough Council,9/28/2022,0041034743/1,41034743, 33.98,KCS,00054200,,Stationery,Finance Sals&Overheads,D01AF000043003,410032256
http://statistics.data.gov.uk/id/local-authority/29UP,Tonbridge & Malling Borough Council,9/28/2022,0041034743/2,41034743, 10.99,KCS,00054200,,Stationery,Finance Sals&Overheads,D01AF000043003,410032256
http://statistics.data.gov.uk/id/local-authority/29UP,Tonbridge & Malling Borough Council,9/28/2022,0041034743/3,41034743, 3.95,KCS,00054200,,Stationery,Finance Sals&Overheads,D01AF000043003,410032256
http://statistics.data.gov.uk/id/local-authority/29UP,Tonbridge & Malling Borough Council,9/28/2022,0041034751/1,41034751, 44.80,Tameside Metropolitan Borough,00770200,,Other Expenses,Finance Sals&Overheads,D01AFDF0648010,410032236
http://statistics.data.gov.uk/id/local-authority/29UP,Tonbridge & Malling Borough Council,9/28/2022,0041034759/1,41034759, 145000.00,Post Office Ltd - Via AllPay,01855500,,Charitable / Voluntary Organis,Grants & Payments to Vol Orgn,D37PAHS2247005,
http://statistics.data.gov.uk/id/local-authority/29UP,Tonbridge & Malling Borough Council,9/28/2022,0041034760/3,41034760, 147.00,Dun & Bradstreet Limited,01118900,,Contract Services,Finance Sals&Overheads,D01AFDF0244005,
http://statistics.data.gov.uk/id/local-authority/29UP,Tonbridge & Malling Borough Council,9/28/2022,0041034764/1,41034764, 91100.00,Post Office Ltd - Via AllPay,01855500,,Charitable / Voluntary Organis,Grants & Payments to Vol Orgn,D37PAHS2247005,
http://statistics.data.gov.uk/id/local-authority/29UP,Tonbridge & Malling Borough Council,9/28/2022,0041034765/3,41034765, 92.04,Adelante Software Limited,01393800,812115871,Credit Card Commission,Banking Arrangements,D43QK000044082,
http://statistics.data.gov.uk/id/local-authority/29UP,Tonbridge & Malling Borough Council,9/30/2022,0041034777/1,41034777, 15.00,BNP Paribas,01360500,,Bank Charges,Banking Arrangements,D43QK000044222,
http://statistics.data.gov.uk/id/local-authority/29UP,Tonbridge & Malling Borough Council,9/30/2022,0041034778/1,41034778, 636.00,REDACTED PERSONAL DATA,01864000,,Charitable / Voluntary Organis,Grants & Payments to Vol Orgn,D37PACV1947005,
